Workbook

Sheet OneVarMCSim (hidden)
A1: Results of Monte Carlo Simulation | AK1: 0 | AL1: 0
A2: Sample Number | F2: Simulation Stats | AH2: 0 | AK2: 0 | AL2: 0
A3: 1 | G3: repetitions | AH3: 0.1290322542 | AI3: 0 | AK3: 0.1290322542 | AL3: 0
A4: 2 | G4: seconds | I4: Summary Statistics | L4: Notes | AH4: 0.2580645084 | AI4: 3 | AK4: 0.1290322542 | AL4: 3
A5: 3 | I5: Average | J5: 1.16710423 | AH5: 0.3870967627 | AI5: 4 | AK5: 0.2580645084 | AL5: 3
A6: 4 | I6: SD | J6: 0.5760398821 | AH6: 0.5161290169 | AI6: 8 | AK6: 0.2580645084 | AL6: 4
A7: 5 | I7: Max | J7: 2.5793023 | AH7: 0.6451612711 | AI7: 4 | AK7: 0.3870967627 | AL7: 4
A8: 6 | I8: Min | J8: 0.2134278418 | AH8: 0.7741935253 | AI8: 9 | AK8: 0.3870967627 | AL8: 8
A9: 7 | AH9: 0.9032257795 | AI9: 9 | AK9: 0.5161290169 | AL9: 8
A10: 8 | AH10: 1.032258034 | AI10: 12 | AK10: 0.5161290169 | AL10: 4
A11: 9 | AH11: 1.161290288 | AI11: 8 | AK11: 0.6451612711 | AL11: 4
A12: 10 | AH12: 1.290322542 | AI12: 3 | AK12: 0.6451612711 | AL12: 9
A13: 11 | AH13: 1.419354796 | AI13: 6 | AK13: 0.7741935253 | AL13: 9
A14: 12 | AH14: 1.548387051 | AI14: 7 | AK14: 0.7741935253 | AL14: 9
A15: 13 | AH15: 1.677419305 | AI15: 6 | AK15: 0.9032257795 | AL15: 9
A16: 14 | AH16: 1.806451559 | AI16: 6 | AK16: 0.9032257795 | AL16: 12
A17: 15 | AH17: 1.935483813 | AI17: 2 | AK17: 1.032258034 | AL17: 12
A18: 16 | AH18: 2.064516068 | AI18: 5 | AK18: 1.032258034 | AL18: 8
A19: 17 | AH19: 2.193548322 | AI19: 2 | AK19: 1.161290288 | AL19: 8
A20: 18 | AH20: 2.322580576 | AI20: 3 | AK20: 1.161290288 | AL20: 3
A21: 19 | AH21: 2.45161283 | AI21: 2 | AK21: 1.290322542 | AL21: 3
A22: 20 | AH22: 2.580645084 | AI22: 1 | AK22: 1.290322542 | AL22: 6
A23: 21 | AH23: 2.709677339 | AI23: 0 | AK23: 1.419354796 | AL23: 6
A24: 22 | AH24: 2.838709593 | AI24: 0 | AK24: 1.419354796 | AL24: 7
A25: 23 | AH25: 2.967741847 | AI25: 0 | AK25: 1.548387051 | AL25: 7
A26: 24 | AH26: 3.096774101 | AI26: 0 | AK26: 1.548387051 | AL26: 6
A27: 25 | AH27: 3.225806355 | AI27: 0 | AK27: 1.677419305 | AL27: 6
A28: 26 | AH28: 3.35483861 | AI28: 0 | AK28: 1.677419305 | AL28: 6
A29: 27 | AH29: 3.483870864 | AI29: 0 | AK29: 1.806451559 | AL29: 6
A30: 28 | AH30: 3.612903118 | AI30: 0 | AK30: 1.806451559 | AL30: 2
A31: 29 | AH31: 3.741935372 | AI31: 0 | AK31: 1.935483813 | AL31: 2
A32: 30 | AH32: 3.870967627 | AI32: 0 | AK32: 1.935483813 | AL32: 5
A33: 31 | AH33: 3.999999881 | AI33: 0 | AK33: 2.064516068 | AL33: 5
A34: 32 | AK34: 2.064516068 | AL34: 2
A35: 33 | AK35: 2.193548322 | AL35: 2
A36: 34 | AK36: 2.193548322 | AL36: 3
A37: 35 | AK37: 2.322580576 | AL37: 3
A38: 36 | AK38: 2.322580576 | AL38: 2
A39: 37 | AK39: 2.45161283 | AL39: 2
A40: 38 | AK40: 2.45161283 | AL40: 1
A41: 39 | AK41: 2.580645084 | AL41: 1
A42: 40 | AK42: 2.580645084 | AL42: 0
A43: 41 | AK43: 2.709677339 | AL43: 0
A44: 42 | AK44: 2.709677339 | AL44: 0
A45: 43 | AK45: 2.838709593 | AL45: 0
A46: 44 | AK46: 2.838709593 | AL46: 0
A47: 45 | AK47: 2.967741847 | AL47: 0
A48: 46 | AK48: 2.967741847 | AL48: 0
A49: 47 | AK49: 3.096774101 | AL49: 0
A50: 48 | AK50: 3.096774101 | AL50: 0
A51: 49 | AK51: 3.225806355 | AL51: 0
A52: 50 | AK52: 3.225806355 | AL52: 0
A53: 51 | AK53: 3.35483861 | AL53: 0
A54: 52 | AK54: 3.35483861 | AL54: 0
A55: 53 | AK55: 3.483870864 | AL55: 0
A56: 54 | AK56: 3.483870864 | AL56: 0
A57: 55 | AK57: 3.612903118 | AL57: 0
A58: 56 | AK58: 3.612903118 | AL58: 0
A59: 57 | AK59: 3.741935372 | AL59: 0
A60: 58 | AK60: 3.741935372 | AL60: 0
A61: 59 | AK61: 3.870967627 | AL61: 0
A62: 60 | AK62: 3.870967627 | AL62: 0
A63: 61 | AK63: 3.999999881 | AL63: 0
A64: 62 | AK64: 3.999999881 | AL64: 0
A65: 63
A66: 64
A67: 65
A68: 66
A69: 67
A70: 68
A71: 69
A72: 70
A73: 71
A74: 72
A75: 73
A76: 74
A77: 75
A78: 76
A79: 77
A80: 78
A81: 79
A82: 80
A83: 81
A84: 82
A85: 83
A86: 84
A87: 85
A88: 86
A89: 87
A90: 88
A91: 89
A92: 90
A93: 91
A94: 92
A95: 93
A96: 94
A97: 95
A98: 96
A99: 97
A100: 98
A101: 99
A102: 100
A103: Only the first 100 repetitions are displayed on this worksheet.

Sheet TwoVarMCSim (hidden)
A1: Results of Monte Carlo Simulation
A2: Sample Number | B2: Var1 | C2: Var2 | F2: Simulation Stats
A3: 1 | G3: repetitions
A4: 2 | G4: secs | I4: Var1 | K4: Var2 | M4: Notes
A5: 3 | I5: Average | J5: 0.003891987077 | K5: Average | L5: 0.003355620617
A6: 4 | I6: SD | J6: 0.1659865299 | K6: SD | L6: 0.1488266145
A7: 5 | I7: Max | J7: 0.5008107016 | K7: Max | L7: 0.4001902531
A8: 6 | I8: Min | J8: -0.5496349566 | K8: Min | L8: -0.4673416415
A9: 7
A10: 8
A11: 9
A12: 10
A13: 11
A14: 12
A15: 13
A16: 14
A17: 15
A18: 16
A19: 17 | F19: 1
A20: 18
A21: 19
A22: 20
A23: 21
A24: 22
A25: 23
A26: 24
A27: 25
A28: 26
A29: 27
A30: 28
A31: 29
A32: 30
A33: 31
A34: 32
A35: 33
A36: 34
A37: 35
A38: 36
A39: 37
A40: 38
A41: 39
A42: 40
A43: 41
A44: 42
A45: 43
A46: 44
A47: 45
A48: 46
A49: 47
A50: 48
A51: 49
A52: 50
A53: 51
A54: 52
A55: 53
A56: 54
A57: 55
A58: 56
A59: 57
A60: 58
A61: 59
A62: 60
A63: 61
A64: 62
A65: 63
A66: 64
A67: 65
A68: 66
A69: 67
A70: 68
A71: 69
A72: 70
A73: 71
A74: 72
A75: 73
A76: 74
A77: 75
A78: 76
A79: 77
A80: 78
A81: 79
A82: 80
A83: 81
A84: 82
A85: 83
A86: 84
A87: 85
A88: 86
A89: 87
A90: 88
A91: 89
A92: 90
A93: 91
A94: 92
A95: 93
A96: 94
A97: 95
A98: 96
A99: 97
A100: 98
A101: 99
A102: 100
A103: Only the first 100 repetitions are displayed on this worksheet.

Sheet Intro
A1: This is a completed version of Parrondo's Paradox.
A3: You must ENABLE MACROS for the buttons to work.

Sheet DGP
A1: Understanding Parrondo's Paradox | Z1: 1 | AA1: Random
AA2: ABAB
A3: Game A | G3: Game B | AA3: AABB
A4: epsilon | B4: 0.005 | C4: amount of bias in the coin | G4: Coin 1 | J4: Coin 2
A5: Prob Heads | B5: =0.5-B4 -> 0.495 | G5: Prob Heads | H5: =0.1-B4 -> 0.095 | J5: Prob Heads | K5: =0.75-B4 -> 0.745
N6: Playing both randomly | P6: IF Game B is chosen | S6: Game B | T6: Actual
A7: Flip # | B7: Result | C7: End M | G7: Flip # | H7: Start M | I7: M/3 Remainder | J7: Coin | K7: Result | L7: End M | N7: Flip # | O7: Game | P7: Start M | Q7: M/3 Remainder | R7: Coin | S7: Result | T7: Result | U7: End M
A8: 1 | B8: =IF(RAND()<=$B$5,1,0) -> 1 | C8: =IF(B8=1,1,-1) -> 1 | G8: 1 | H8: 0 | I8: =MOD(H8,3) -> 0 | J8: =IF(I8=0,1,2) -> 1 | K8: =IF(I8=0,IF(RAND()<=$H$5,1,0),IF(RAND()<=$K$5,1,0)) -> 0 | L8: =IF(K8=1,1,-1) -> -1 | N8: 1 | O8: =IF(RAND()<=0.5,"A","B") -> B | P8: 0 | Q8: =MOD(P8,3) -> 0 | R8: 1 | S8: =IF(RAND()<=$H$5,1,0) -> 0 | T8: =IF(O8="A",B8,S8) -> 0 | U8: =IF(T8=1,1,-1) -> -1
A9: 2 | B9: 0 | C9: =IF(B9=1,1+C8,-1+C8) -> 0 | G9: 2 | H9: =L8 -> -1 | I9: 2 | J9: 2 | K9: 0 | L9: =IF(K9=1,1+L8,-1+L8) -> -2 | N9: 2 | O9: A | P9: =U8 -> -1 | Q9: 2 | R9: =IF(Q9=0,1,2) -> 2 | S9: =IF(Q9=0,IF(RAND()<=$H$5,1,0),IF(RAND()<=$K$5,1,0)) -> 1 | T9: 0 | U9: =IF(T9=1,1+U8,-1+U8) -> -2
A10: 3 | B10: 1 | C10: 1 | G10: 3 | H10: -2 | I10: 1 | J10: 2 | K10: 0 | L10: -3 | N10: 3 | O10: A | P10: -2 | Q10: 1 | R10: 2 | S10: 1 | T10: 1 | U10: -1
A11: 4 | B11: 1 | C11: 2 | G11: 4 | H11: -3 | I11: 0 | J11: 1 | K11: 0 | L11: -4 | N11: 4 | O11: A | P11: -1 | Q11: 2 | R11: 2 | S11: 0 | T11: 1 | U11: 0
A12: 5 | B12: 0 | C12: 1 | G12: 5 | H12: -4 | I12: 2 | J12: 2 | K12: 1 | L12: -3 | N12: 5 | O12: B | P12: 0 | Q12: 0 | R12: 1 | S12: 0 | T12: 0 | U12: -1
A13: 6 | B13: 1 | C13: 2 | G13: 6 | H13: -3 | I13: 0 | J13: 1 | K13: 0 | L13: -4 | N13: 6 | O13: B | P13: -1 | Q13: 2 | R13: 2 | S13: 0 | T13: 0 | U13: -2
A14: 7 | B14: 0 | C14: 1 | G14: 7 | H14: -4 | I14: 2 | J14: 2 | K14: 1 | L14: -3 | N14: 7 | O14: B | P14: -2 | Q14: 1 | R14: 2 | S14: 0 | T14: 0 | U14: -3
A15: 8 | B15: 1 | C15: 2 | G15: 8 | H15: -3 | I15: 0 | J15: 1 | K15: 0 | L15: -4 | N15: 8 | O15: A | P15: -3 | Q15: 0 | R15: 1 | S15: 0 | T15: 1 | U15: -2
A16: 9 | B16: 0 | C16: 1 | G16: 9 | H16: -4 | I16: 2 | J16: 2 | K16: 1 | L16: -3 | N16: 9 | O16: A | P16: -2 | Q16: 1 | R16: 2 | S16: 1 | T16: 0 | U16: -3
A17: 10 | B17: 1 | C17: 2 | G17: 10 | H17: -3 | I17: 0 | J17: 1 | K17: 0 | L17: -4 | N17: 10 | O17: A | P17: -3 | Q17: 0 | R17: 1 | S17: 0 | T17: 1 | U17: -2
A18: 11 | B18: 0 | C18: 1 | G18: 11 | H18: -4 | I18: 2 | J18: 2 | K18: 0 | L18: -5 | N18: 11 | O18: B | P18: -2 | Q18: 1 | R18: 2 | S18: 1 | T18: 1 | U18: -1
A19: 12 | B19: 0 | C19: 0 | G19: 12 | H19: -5 | I19: 1 | J19: 2 | K19: 1 | L19: -4 | N19: 12 | O19: A | P19: -1 | Q19: 2 | R19: 2 | S19: 1 | T19: 0 | U19: -2
A20: 13 | B20: 0 | C20: -1 | G20: 13 | H20: -4 | I20: 2 | J20: 2 | K20: 0 | L20: -5 | N20: 13 | O20: A | P20: -2 | Q20: 1 | R20: 2 | S20: 0 | T20: 0 | U20: -3
A21: 14 | B21: 1 | C21: 0 | G21: 14 | H21: -5 | I21: 1 | J21: 2 | K21: 1 | L21: -4 | N21: 14 | O21: A | P21: -3 | Q21: 0 | R21: 1 | S21: 0 | T21: 1 | U21: -2
A22: 15 | B22: 0 | C22: -1 | G22: 15 | H22: -4 | I22: 2 | J22: 2 | K22: 0 | L22: -5 | N22: 15 | O22: B | P22: -2 | Q22: 1 | R22: 2 | S22: 0 | T22: 0 | U22: -3
A23: 16 | B23: 1 | C23: 0 | G23: 16 | H23: -5 | I23: 1 | J23: 2 | K23: 1 | L23: -4 | N23: 16 | O23: A | P23: -3 | Q23: 0 | R23: 1 | S23: 0 | T23: 1 | U23: -2
A24: 17 | B24: 1 | C24: 1 | G24: 17 | H24: -4 | I24: 2 | J24: 2 | K24: 1 | L24: -3 | N24: 17 | O24: B | P24: -2 | Q24: 1 | R24: 2 | S24: 1 | T24: 1 | U24: -1
A25: 18 | B25: 1 | C25: 2 | G25: 18 | H25: -3 | I25: 0 | J25: 1 | K25: 0 | L25: -4 | N25: 18 | O25: B | P25: -1 | Q25: 2 | R25: 2 | S25: 1 | T25: 1 | U25: 0
A26: 19 | B26: 1 | C26: 3 | G26: 19 | H26: -4 | I26: 2 | J26: 2 | K26: 1 | L26: -3 | N26: 19 | O26: B | P26: 0 | Q26: 0 | R26: 1 | S26: 0 | T26: 0 | U26: -1
A27: 20 | B27: 1 | C27: 4 | G27: 20 | H27: -3 | I27: 0 | J27: 1 | K27: 0 | L27: -4 | N27: 20 | O27: B | P27: -1 | Q27: 2 | R27: 2 | S27: 1 | T27: 1 | U27: 0
A28: 21 | B28: 1 | C28: 5 | G28: 21 | H28: -4 | I28: 2 | J28: 2 | K28: 1 | L28: -3 | N28: 21 | O28: A | P28: 0 | Q28: 0 | R28: 1 | S28: 0 | T28: 1 | U28: 1
A29: 22 | B29: 0 | C29: 4 | G29: 22 | H29: -3 | I29: 0 | J29: 1 | K29: 0 | L29: -4 | N29: 22 | O29: B | P29: 1 | Q29: 1 | R29: 2 | S29: 0 | T29: 0 | U29: 0
A30: 23 | B30: 0 | C30: 3 | G30: 23 | H30: -4 | I30: 2 | J30: 2 | K30: 0 | L30: -5 | N30: 23 | O30: B | P30: 0 | Q30: 0 | R30: 1 | S30: 0 | T30: 0 | U30: -1
A31: 24 | B31: 0 | C31: 2 | G31: 24 | H31: -5 | I31: 1 | J31: 2 | K31: 1 | L31: -4 | N31: 24 | O31: B | P31: -1 | Q31: 2 | R31: 2 | S31: 1 | T31: 1 | U31: 0
A32: 25 | B32: 0 | C32: 1 | G32: 25 | H32: -4 | I32: 2 | J32: 2 | K32: 1 | L32: -3 | N32: 25 | O32: B | P32: 0 | Q32: 0 | R32: 1 | S32: 0 | T32: 0 | U32: -1
A33: 26 | B33: 1 | C33: 2 | G33: 26 | H33: -3 | I33: 0 | J33: 1 | K33: 0 | L33: -4 | N33: 26 | O33: A | P33: -1 | Q33: 2 | R33: 2 | S33: 1 | T33: 1 | U33: 0
A34: 27 | B34: 0 | C34: 1 | G34: 27 | H34: -4 | I34: 2 | J34: 2 | K34: 1 | L34: -3 | N34: 27 | O34: A | P34: 0 | Q34: 0 | R34: 1 | S34: 0 | T34: 0 | U34: -1
A35: 28 | B35: 1 | C35: 2 | G35: 28 | H35: -3 | I35: 0 | J35: 1 | K35: 0 | L35: -4 | N35: 28 | O35: B | P35: -1 | Q35: 2 | R35: 2 | S35: 1 | T35: 1 | U35: 0
A36: 29 | B36: 1 | C36: 3 | G36: 29 | H36: -4 | I36: 2 | J36: 2 | K36: 0 | L36: -5 | N36: 29 | O36: A | P36: 0 | Q36: 0 | R36: 1 | S36: 0 | T36: 1 | U36: 1
A37: 30 | B37: 0 | C37: 2 | G37: 30 | H37: -5 | I37: 1 | J37: 2 | K37: 0 | L37: -6 | N37: 30 | O37: A | P37: 1 | Q37: 1 | R37: 2 | S37: 1 | T37: 0 | U37: 0
A38: 31 | B38: 1 | C38: 3 | G38: 31 | H38: -6 | I38: 0 | J38: 1 | K38: 0 | L38: -7 | N38: 31 | O38: B | P38: 0 | Q38: 0 | R38: 1 | S38: 0 | T38: 0 | U38: -1
A39: 32 | B39: 1 | C39: 4 | G39: 32 | H39: -7 | I39: 2 | J39: 2 | K39: 1 | L39: -6 | N39: 32 | O39: A | P39: -1 | Q39: 2 | R39: 2 | S39: 0 | T39: 1 | U39: 0
A40: 33 | B40: =IF(RAND()<=$B$5,1,0) -> 0 | C40: 3 | G40: 33 | H40: -6 | I40: =MOD(H40,3) -> 0 | J40: =IF(I40=0,1,2) -> 1 | K40: =IF(I40=0,IF(RAND()<=$H$5,1,0),IF(RAND()<=$K$5,1,0)) -> 0 | L40: -7 | N40: 33 | O40: =IF(RAND()<=0.5,"A","B") -> B | P40: 0 | Q40: =MOD(P40,3) -> 0 | R40: 1 | S40: 0 | T40: =IF(O40="A",B40,S40) -> 0 | U40: -1
A41: 34 | B41: 1 | C41: =IF(B41=1,1+C40,-1+C40) -> 4 | G41: 34 | H41: =L40 -> -7 | I41: 2 | J41: 2 | K41: 1 | L41: =IF(K41=1,1+L40,-1+L40) -> -6 | N41: 34 | O41: A | P41: =U40 -> -1 | Q41: 2 | R41: =IF(Q41=0,1,2) -> 2 | S41: =IF(Q41=0,IF(RAND()<=$H$5,1,0),IF(RAND()<=$K$5,1,0)) -> 1 | T41: 1 | U41: =IF(T41=1,1+U40,-1+U40) -> 0
A42: 35 | B42: 0 | C42: 3 | G42: 35 | H42: -6 | I42: 0 | J42: 1 | K42: 0 | L42: -7 | N42: 35 | O42: A | P42: 0 | Q42: 0 | R42: 1 | S42: 0 | T42: 0 | U42: -1
A43: 36 | B43: 1 | C43: 4 | G43: 36 | H43: -7 | I43: 2 | J43: 2 | K43: 1 | L43: -6 | N43: 36 | O43: B | P43: -1 | Q43: 2 | R43: 2 | S43: 1 | T43: 1 | U43: 0
A44: 37 | B44: 1 | C44: 5 | G44: 37 | H44: -6 | I44: 0 | J44: 1 | K44: 0 | L44: -7 | N44: 37 | O44: B | P44: 0 | Q44: 0 | R44: 1 | S44: 0 | T44: 0 | U44: -1
A45: 38 | B45: 1 | C45: 6 | G45: 38 | H45: -7 | I45: 2 | J45: 2 | K45: 1 | L45: -6 | N45: 38 | O45: B | P45: -1 | Q45: 2 | R45: 2 | S45: 0 | T45: 0 | U45: -2
A46: 39 | B46: 1 | C46: 7 | G46: 39 | H46: -6 | I46: 0 | J46: 1 | K46: 0 | L46: -7 | N46: 39 | O46: B | P46: -2 | Q46: 1 | R46: 2 | S46: 1 | T46: 1 | U46: -1
A47: 40 | B47: 1 | C47: 8 | G47: 40 | H47: -7 | I47: 2 | J47: 2 | K47: 1 | L47: -6 | N47: 40 | O47: B | P47: -1 | Q47: 2 | R47: 2 | S47: 0 | T47: 0 | U47: -2
A48: 41 | B48: 1 | C48: 9 | G48: 41 | H48: -6 | I48: 0 | J48: 1 | K48: 0 | L48: -7 | N48: 41 | O48: B | P48: -2 | Q48: 1 | R48: 2 | S48: 1 | T48: 1 | U48: -1
A49: 42 | B49: 1 | C49: 10 | G49: 42 | H49: -7 | I49: 2 | J49: 2 | K49: 0 | L49: -8 | N49: 42 | O49: A | P49: -1 | Q49: 2 | R49: 2 | S49: 1 | T49: 1 | U49: 0
A50: 43 | B50: 1 | C50: 11 | G50: 43 | H50: -8 | I50: 1 | J50: 2 | K50: 0 | L50: -9 | N50: 43 | O50: A | P50: 0 | Q50: 0 | R50: 1 | S50: 0 | T50: 1 | U50: 1
A51: 44 | B51: 0 | C51: 10 | G51: 44 | H51: -9 | I51: 0 | J51: 1 | K51: 0 | L51: -10 | N51: 44 | O51: A | P51: 1 | Q51: 1 | R51: 2 | S51: 1 | T51: 0 | U51: 0
A52: 45 | B52: 0 | C52: 9 | G52: 45 | H52: -10 | I52: 2 | J52: 2 | K52: 1 | L52: -9 | N52: 45 | O52: A | P52: 0 | Q52: 0 | R52: 1 | S52: 0 | T52: 0 | U52: -1
A53: 46 | B53: 1 | C53: 10 | G53: 46 | H53: -9 | I53: 0 | J53: 1 | K53: 0 | L53: -10 | N53: 46 | O53: A | P53: -1 | Q53: 2 | R53: 2 | S53: 1 | T53: 1 | U53: 0
A54: 47 | B54: 0 | C54: 9 | G54: 47 | H54: -10 | I54: 2 | J54: 2 | K54: 1 | L54: -9 | N54: 47 | O54: B | P54: 0 | Q54: 0 | R54: 1 | S54: 0 | T54: 0 | U54: -1
A55: 48 | B55: 0 | C55: 8 | G55: 48 | H55: -9 | I55: 0 | J55: 1 | K55: 0 | L55: -10 | N55: 48 | O55: B | P55: -1 | Q55: 2 | R55: 2 | S55: 1 | T55: 1 | U55: 0
A56: 49 | B56: 0 | C56: 7 | G56: 49 | H56: -10 | I56: 2 | J56: 2 | K56: 0 | L56: -11 | N56: 49 | O56: A | P56: 0 | Q56: 0 | R56: 1 | S56: 0 | T56: 0 | U56: -1
A57: 50 | B57: 0 | C57: 6 | G57: 50 | H57: -11 | I57: 1 | J57: 2 | K57: 1 | L57: -10 | N57: 50 | O57: A | P57: -1 | Q57: 2 | R57: 2 | S57: 1 | T57: 0 | U57: -2
A58: 51 | B58: 1 | C58: 7 | G58: 51 | H58: -10 | I58: 2 | J58: 2 | K58: 1 | L58: -9 | N58: 51 | O58: A | P58: -2 | Q58: 1 | R58: 2 | S58: 0 | T58: 1 | U58: -1
A59: 52 | B59: 1 | C59: 8 | G59: 52 | H59: -9 | I59: 0 | J59: 1 | K59: 0 | L59: -10 | N59: 52 | O59: B | P59: -1 | Q59: 2 | R59: 2 | S59: 1 | T59: 1 | U59: 0
A60: 53 | B60: 0 | C60: 7 | G60: 53 | H60: -10 | I60: 2 | J60: 2 | K60: 0 | L60: -11 | N60: 53 | O60: B | P60: 0 | Q60: 0 | R60: 1 | S60: 0 | T60: 0 | U60: -1
A61: 54 | B61: 0 | C61: 6 | G61: 54 | H61: -11 | I61: 1 | J61: 2 | K61: 0 | L61: -12 | N61: 54 | O61: B | P61: -1 | Q61: 2 | R61: 2 | S61: 1 | T61: 1 | U61: 0
A62: 55 | B62: 0 | C62: 5 | G62: 55 | H62: -12 | I62: 0 | J62: 1 | K62: 0 | L62: -13 | N62: 55 | O62: A | P62: 0 | Q62: 0 | R62: 1 | S62: 0 | T62: 0 | U62: -1
A63: 56 | B63: 1 | C63: 6 | G63: 56 | H63: -13 | I63: 2 | J63: 2 | K63: 1 | L63: -12 | N63: 56 | O63: B | P63: -1 | Q63: 2 | R63: 2 | S63: 0 | T63: 0 | U63: -2
A64: 57 | B64: 1 | C64: 7 | G64: 57 | H64: -12 | I64: 0 | J64: 1 | K64: 0 | L64: -13 | N64: 57 | O64: B | P64: -2 | Q64: 1 | R64: 2 | S64: 1 | T64: 1 | U64: -1
A65: 58 | B65: 0 | C65: 6 | G65: 58 | H65: -13 | I65: 2 | J65: 2 | K65: 1 | L65: -12 | N65: 58 | O65: B | P65: -1 | Q65: 2 | R65: 2 | S65: 1 | T65: 1 | U65: 0
A66: 59 | B66: 1 | C66: 7 | G66: 59 | H66: -12 | I66: 0 | J66: 1 | K66: 0 | L66: -13 | N66: 59 | O66: B | P66: 0 | Q66: 0 | R66: 1 | S66: 1 | T66: 1 | U66: 1
A67: 60 | B67: 0 | C67: 6 | G67: 60 | H67: -13 | I67: 2 | J67: 2 | K67: 1 | L67: -12 | N67: 60 | O67: B | P67: 1 | Q67: 1 | R67: 2 | S67: 1 | T67: 1 | U67: 2
A68: 61 | B68: 0 | C68: 5 | G68: 61 | H68: -12 | I68: 0 | J68: 1 | K68: 0 | L68: -13 | N68: 61 | O68: A | P68: 2 | Q68: 2 | R68: 2 | S68: 1 | T68: 0 | U68: 1
A69: 62 | B69: 0 | C69: 4 | G69: 62 | H69: -13 | I69: 2 | J69: 2 | K69: 1 | L69: -12 | N69: 62 | O69: A | P69: 1 | Q69: 1 | R69: 2 | S69: 1 | T69: 0 | U69: 0
A70: 63 | B70: 1 | C70: 5 | G70: 63 | H70: -12 | I70: 0 | J70: 1 | K70: 0 | L70: -13 | N70: 63 | O70: B | P70: 0 | Q70: 0 | R70: 1 | S70: 0 | T70: 0 | U70: -1
A71: 64 | B71: 1 | C71: 6 | G71: 64 | H71: -13 | I71: 2 | J71: 2 | K71: 0 | L71: -14 | N71: 64 | O71: B | P71: -1 | Q71: 2 | R71: 2 | S71: 0 | T71: 0 | U71: -2
A72: 65 | B72: =IF(RAND()<=$B$5,1,0) -> 1 | C72: 7 | G72: 65 | H72: -14 | I72: =MOD(H72,3) -> 1 | J72: =IF(I72=0,1,2) -> 2 | K72: =IF(I72=0,IF(RAND()<=$H$5,1,0),IF(RAND()<=$K$5,1,0)) -> 0 | L72: -15 | N72: 65 | O72: =IF(RAND()<=0.5,"A","B") -> A | P72: -2 | Q72: =MOD(P72,3) -> 1 | R72: 2 | S72: 1 | T72: =IF(O72="A",B72,S72) -> 1 | U72: -1
A73: 66 | B73: 1 | C73: =IF(B73=1,1+C72,-1+C72) -> 8 | G73: 66 | H73: =L72 -> -15 | I73: 0 | J73: 1 | K73: 0 | L73: =IF(K73=1,1+L72,-1+L72) -> -16 | N73: 66 | O73: B | P73: =U72 -> -1 | Q73: 2 | R73: =IF(Q73=0,1,2) -> 2 | S73: =IF(Q73=0,IF(RAND()<=$H$5,1,0),IF(RAND()<=$K$5,1,0)) -> 0 | T73: 0 | U73: =IF(T73=1,1+U72,-1+U72) -> -2
A74: 67 | B74: 0 | C74: 7 | G74: 67 | H74: -16 | I74: 2 | J74: 2 | K74: 0 | L74: -17 | N74: 67 | O74: B | P74: -2 | Q74: 1 | R74: 2 | S74: 1 | T74: 1 | U74: -1
A75: 68 | B75: 0 | C75: 6 | G75: 68 | H75: -17 | I75: 1 | J75: 2 | K75: 1 | L75: -16 | N75: 68 | O75: B | P75: -1 | Q75: 2 | R75: 2 | S75: 0 | T75: 0 | U75: -2
A76: 69 | B76: 0 | C76: 5 | G76: 69 | H76: -16 | I76: 2 | J76: 2 | K76: 1 | L76: -15 | N76: 69 | O76: A | P76: -2 | Q76: 1 | R76: 2 | S76: 1 | T76: 0 | U76: -3
A77: 70 | B77: 1 | C77: 6 | G77: 70 | H77: -15 | I77: 0 | J77: 1 | K77: 0 | L77: -16 | N77: 70 | O77: A | P77: -3 | Q77: 0 | R77: 1 | S77: 0 | T77: 1 | U77: -2
A78: 71 | B78: 1 | C78: 7 | G78: 71 | H78: -16 | I78: 2 | J78: 2 | K78: 0 | L78: -17 | N78: 71 | O78: A | P78: -2 | Q78: 1 | R78: 2 | S78: 1 | T78: 1 | U78: -1
A79: 72 | B79: 0 | C79: 6 | G79: 72 | H79: -17 | I79: 1 | J79: 2 | K79: 0 | L79: -18 | N79: 72 | O79: B | P79: -1 | Q79: 2 | R79: 2 | S79: 1 | T79: 1 | U79: 0
A80: 73 | B80: 0 | C80: 5 | G80: 73 | H80: -18 | I80: 0 | J80: 1 | K80: 0 | L80: -19 | N80: 73 | O80: A | P80: 0 | Q80: 0 | R80: 1 | S80: 0 | T80: 0 | U80: -1
A81: 74 | B81: 0 | C81: 4 | G81: 74 | H81: -19 | I81: 2 | J81: 2 | K81: 1 | L81: -18 | N81: 74 | O81: B | P81: -1 | Q81: 2 | R81: 2 | S81: 1 | T81: 1 | U81: 0
A82: 75 | B82: 1 | C82: 5 | G82: 75 | H82: -18 | I82: 0 | J82: 1 | K82: 0 | L82: -19 | N82: 75 | O82: B | P82: 0 | Q82: 0 | R82: 1 | S82: 0 | T82: 0 | U82: -1
A83: 76 | B83: 1 | C83: 6 | G83: 76 | H83: -19 | I83: 2 | J83: 2 | K83: 1 | L83: -18 | N83: 76 | O83: A | P83: -1 | Q83: 2 | R83: 2 | S83: 1 | T83: 1 | U83: 0
A84: 77 | B84: 0 | C84: 5 | G84: 77 | H84: -18 | I84: 0 | J84: 1 | K84: 0 | L84: -19 | N84: 77 | O84: A | P84: 0 | Q84: 0 | R84: 1 | S84: 1 | T84: 0 | U84: -1
A85: 78 | B85: 0 | C85: 4 | G85: 78 | H85: -19 | I85: 2 | J85: 2 | K85: 0 | L85: -20 | N85: 78 | O85: A | P85: -1 | Q85: 2 | R85: 2 | S85: 1 | T85: 0 | U85: -2
A86: 79 | B86: 1 | C86: 5 | G86: 79 | H86: -20 | I86: 1 | J86: 2 | K86: 1 | L86: -19 | N86: 79 | O86: B | P86: -2 | Q86: 1 | R86: 2 | S86: 1 | T86: 1 | U86: -1
A87: 80 | B87: 1 | C87: 6 | G87: 80 | H87: -19 | I87: 2 | J87: 2 | K87: 1 | L87: -18 | N87: 80 | O87: A | P87: -1 | Q87: 2 | R87: 2 | S87: 1 | T87: 1 | U87: 0
A88: 81 | B88: 0 | C88: 5 | G88: 81 | H88: -18 | I88: 0 | J88: 1 | K88: 0 | L88: -19 | N88: 81 | O88: B | P88: 0 | Q88: 0 | R88: 1 | S88: 0 | T88: 0 | U88: -1
A89: 82 | B89: 1 | C89: 6 | G89: 82 | H89: -19 | I89: 2 | J89: 2 | K89: 1 | L89: -18 | N89: 82 | O89: A | P89: -1 | Q89: 2 | R89: 2 | S89: 1 | T89: 1 | U89: 0
A90: 83 | B90: 1 | C90: 7 | G90: 83 | H90: -18 | I90: 0 | J90: 1 | K90: 0 | L90: -19 | N90: 83 | O90: B | P90: 0 | Q90: 0 | R90: 1 | S90: 0 | T90: 0 | U90: -1
A91: 84 | B91: 1 | C91: 8 | G91: 84 | H91: -19 | I91: 2 | J91: 2 | K91: 1 | L91: -18 | N91: 84 | O91: A | P91: -1 | Q91: 2 | R91: 2 | S91: 1 | T91: 1 | U91: 0
A92: 85 | B92: 0 | C92: 7 | G92: 85 | H92: -18 | I92: 0 | J92: 1 | K92: 0 | L92: -19 | N92: 85 | O92: B | P92: 0 | Q92: 0 | R92: 1 | S92: 0 | T92: 0 | U92: -1
A93: 86 | B93: 1 | C93: 8 | G93: 86 | H93: -19 | I93: 2 | J93: 2 | K93: 1 | L93: -18 | N93: 86 | O93: B | P93: -1 | Q93: 2 | R93: 2 | S93: 0 | T93: 0 | U93: -2
A94: 87 | B94: 1 | C94: 9 | G94: 87 | H94: -18 | I94: 0 | J94: 1 | K94: 0 | L94: -19 | N94: 87 | O94: B | P94: -2 | Q94: 1 | R94: 2 | S94: 1 | T94: 1 | U94: -1
A95: 88 | B95: 1 | C95: 10 | G95: 88 | H95: -19 | I95: 2 | J95: 2 | K95: 1 | L95: -18 | N95: 88 | O95: B | P95: -1 | Q95: 2 | R95: 2 | S95: 1 | T95: 1 | U95: 0
A96: 89 | B96: 1 | C96: 11 | G96: 89 | H96: -18 | I96: 0 | J96: 1 | K96: 0 | L96: -19 | N96: 89 | O96: B | P96: 0 | Q96: 0 | R96: 1 | S96: 0 | T96: 0 | U96: -1
A97: 90 | B97: 1 | C97: 12 | G97: 90 | H97: -19 | I97: 2 | J97: 2 | K97: 0 | L97: -20 | N97: 90 | O97: B | P97: -1 | Q97: 2 | R97: 2 | S97: 1 | T97: 1 | U97: 0
A98: 91 | B98: 0 | C98: 11 | G98: 91 | H98: -20 | I98: 1 | J98: 2 | K98: 1 | L98: -19 | N98: 91 | O98: B | P98: 0 | Q98: 0 | R98: 1 | S98: 0 | T98: 0 | U98: -1
A99: 92 | B99: 0 | C99: 10 | G99: 92 | H99: -19 | I99: 2 | J99: 2 | K99: 0 | L99: -20 | N99: 92 | O99: B | P99: -1 | Q99: 2 | R99: 2 | S99: 0 | T99: 0 | U99: -2
A100: 93 | B100: 1 | C100: 11 | G100: 93 | H100: -20 | I100: 1 | J100: 2 | K100: 1 | L100: -19 | N100: 93 | O100: B | P100: -2 | Q100: 1 | R100: 2 | S100: 0 | T100: 0 | U100: -3
A101: 94 | B101: 0 | C101: 10 | G101: 94 | H101: -19 | I101: 2 | J101: 2 | K101: 1 | L101: -18 | N101: 94 | O101: A | P101: -3 | Q101: 0 | R101: 1 | S101: 1 | T101: 0 | U101: -4
A102: 95 | B102: 1 | C102: 11 | G102: 95 | H102: -18 | I102: 0 | J102: 1 | K102: 0 | L102: -19 | N102: 95 | O102: A | P102: -4 | Q102: 2 | R102: 2 | S102: 0 | T102: 1 | U102: -3
A103: 96 | B103: 0 | C103: 10 | G103: 96 | H103: -19 | I103: 2 | J103: 2 | K103: 0 | L103: -20 | N103: 96 | O103: A | P103: -3 | Q103: 0 | R103: 1 | S103: 0 | T103: 0 | U103: -4
A104: 97 | B104: 1 | C104: 11 | G104: 97 | H104: -20 | I104: =MOD(H104,3) -> 1 | J104: =IF(I104=0,1,2) -> 2 | K104: 0 | L104: -21 | N104: 97 | O104: A | P104: -4 | Q104: =MOD(P104,3) -> 2 | R104: 2 | S104: 1 | T104: =IF(O104="A",B104,S104) -> 1 | U104: -3
A105: 98 | B105: 0 | C105: =IF(B105=1,1+C104,-1+C104) -> 10 | G105: 98 | H105: -21 | I105: =MOD(H105,3) -> 0 | J105: =IF(I105=0,1,2) -> 1 | K105: 0 | L105: =IF(K105=1,1+L104,-1+L104) -> -22 | N105: 98 | O105: B | P105: -3 | Q105: =MOD(P105,3) -> 0 | R105: =IF(Q105=0,1,2) -> 1 | S105: 0 | T105: =IF(O105="A",B105,S105) -> 0 | U105: =IF(T105=1,1+U104,-1+U104) -> -4
A106: 99 | B106: 0 | C106: =IF(B106=1,1+C105,-1+C105) -> 9 | G106: 99 | H106: -22 | I106: =MOD(H106,3) -> 2 | J106: =IF(I106=0,1,2) -> 2 | K106: 1 | L106: =IF(K106=1,1+L105,-1+L105) -> -21 | N106: 99 | O106: A | P106: -4 | Q106: =MOD(P106,3) -> 2 | R106: =IF(Q106=0,1,2) -> 2 | S106: 1 | T106: =IF(O106="A",B106,S106) -> 0 | U106: =IF(T106=1,1+U105,-1+U105) -> -5
A107: 100 | B107: 0 | C107: =IF(B107=1,1+C106,-1+C106) -> 8 | G107: 100 | H107: -21 | I107: =MOD(H107,3) -> 0 | J107: =IF(I107=0,1,2) -> 1 | K107: 0 | L107: =IF(K107=1,1+L106,-1+L106) -> -22 | N107: 100 | O107: A | P107: -5 | Q107: =MOD(P107,3) -> 1 | R107: =IF(Q107=0,1,2) -> 2 | S107: 1 | T107: =IF(O107="A",B107,S107) -> 0 | U107: =IF(T107=1,1+U106,-1+U106) -> -6

Sheet MC (hidden)
A1: Analytical Solution via Markov Chain
I2: Initial M | J2: 0
A3: epsilon | B3: 0.005 | E3: Mod(M,3)
A4: Transition Matrix: Game B | E4: 0 | F4: 1 | G4: 2 | I4: Flip # | J4: Expected M
A5: 0 | B5: =0.1-B3 -> 0.095 | C5: =0.9+B3 -> 0.905 | E5: =IF(MOD($J$2,3)=0,1,0) -> 1 | F5: =IF(MOD($J$2,3)=1,1,0) -> 0 | G5: =IF(MOD($J$2,3)=2,1,0) -> 0 | I5: 1 | J5: =E5*($B$5-$C$5)+F5*($C$6-$A$6)+G5*($A$7-$B$7)+J2 -> -0.81
A6: =0.25+B3 -> 0.255 | B6: 0 | C6: =0.75-B3 -> 0.745 | E6: =MMULT(E5:G5,$A$5:$C$7) -> 0 | F6: 0.095 | G6: 0.905 | I6: 2 | J6: =E6*($B$5-$C$5)+F6*($C$6-$A$6)+G6*($A$7-$B$7)+J5 -> -0.32
A7: =0.75-B3 -> 0.745 | B7: =0.25+B3 -> 0.255 | C7: 0 | E7: =MMULT(E6:G6,$A$5:$C$7) -> 0.69845 | F7: 0.230775 | G7: 0.070775 | I7: 3 | J7: -0.737985
E8: =MMULT(E7:G7,$A$5:$C$7) -> 0.111575 | F8: 0.084400375 | G8: 0.804024625 | I8: 4 | J8: -0.3930325
E9: =MMULT(E8:G8,$A$5:$C$7) -> 0.6205204412 | F9: 0.2156259044 | G9: 0.1638536544 | I9: 5 | J9: -0.7097090736
E10: =MMULT(E9:G9,$A$5:$C$7) -> 0.1770555781 | F10: 0.1007321238 | G10: 0.7222122981 | I10: 6 | J10: -0.4498813252
E11: =MMULT(E10:G10,$A$5:$C$7) -> 0.5637348536 | F11: 0.2009844159 | G11: 0.2352807304 | I11: 7 | J11: -0.6927366349
E12: =MMULT(E11:G11,$A$5:$C$7) -> 0.2265351702 | F12: 0.1135513974 | G12: 0.6599134324 | I12: 8 | J12: -0.4972323562
E13: =MMULT(E12:G12,$A$5:$C$7) -> 0.5205911135 | F13: 0.1897987664 | G13: 0.2896101201 | I13: 9 | J13: -0.6840008037
E14: =MMULT(E13:G13,$A$5:$C$7) -> 0.2641582249 | F14: 0.1233067364 | G14: 0.6125350387 | I14: 10 | J14: -0.5374064961
E15: =MMULT(E14:G14,$A$5:$C$7) -> 0.4877818216 | F15: 0.1812914662 | G15: 0.3309267122 | I15: 11 | J15: -0.6815228642
E16: =MMULT(E15:G15,$A$5:$C$7) -> 0.2927697244 | F16: 0.1307255847 | G16: 0.5765046909 | I16: 12 | J16: -0.572123506
E17: =MMULT(E16:G16,$A$5:$C$7) -> 0.4628310188 | F17: 0.17482182 | G17: 0.3623471612 | I17: 13 | J17: -0.6838038304
E18: =MMULT(E17:G17,$A$5:$C$7) -> 0.3145281992 | F18: 0.1363674729 | G18: 0.5491043279 | I18: 14 | J18: -0.6026904894
E19: =MMULT(E18:G18,$A$5:$C$7) -> 0.4438564299 | F19: 0.1699017825 | G19: 0.3862417876 | I19: 15 | J19: -0.6897038482
E20: =MMULT(E19:G19,$A$5:$C$7) -> 0.3310750863 | F20: 0.1406580167 | G20: 0.528266897 | I20: 16 | J20: -0.6301014604
E21: =MMULT(E20:G20,$A$5:$C$7) -> 0.4294266325 | F21: 0.1661601919 | G21: 0.4044131755 | I21: 17 | J21: -0.6983560827
E22: =MMULT(E21:G21,$A$5:$C$7) -> 0.3436586647 | F22: 0.1439208898 | G22: 0.5124204455 | I22: 18 | J22: -0.6551123468
E23: =MMULT(E22:G22,$A$5:$C$7) -> 0.4184530588 | F23: 0.1633147867 | G23: 0.4182321545 | I23: 19 | J23: -0.7091013232
E24: =MMULT(E23:G23,$A$5:$C$7) -> 0.3532282257 | F24: 0.14640224 | G24: 0.5003695343 | I24: 20 | J24: -0.6782980167
E25: =MMULT(E24:G24,$A$5:$C$7) -> 0.4101078743 | F25: 0.1611509127 | G25: 0.4287412131 | I25: 21 | J25: -0.7214382532
E26: =MMULT(E25:G25,$A$5:$C$7) -> 0.3605056865 | F26: 0.1482892574 | G26: 0.4912050562 | I26: 22 | J26: -0.7000956456
E27: =MMULT(E26:G26,$A$5:$C$7) -> 0.4037615275 | F27: 0.1595053295 | G27: 0.436733143 | I27: 23 | J27: -0.7349856313
E28: =MMULT(E27:G27,$A$5:$C$7) -> 0.3660400506 | F28: 0.1497242966 | G28: 0.4842356529 | I28: 24 | J28: -0.720837697
E29: =MMULT(E28:G28,$A$5:$C$7) -> 0.398935257 | F29: 0.1582538963 | G29: 0.4428108467 | I29: 25 | J29: -0.7494535311
E30: =MMULT(E29:G29,$A$5:$C$7) -> 0.3702488243 | F30: 0.1508156153 | G30: 0.4789355603 | I30: 26 | J30: -0.7407770028
E31: =MMULT(E30:G30,$A$5:$C$7) -> 0.3952649743 | F31: 0.1573022062 | G31: 0.4474328195 | I31: 27 | J31: -0.7646214695
E32: =MMULT(E31:G31,$A$5:$C$7) -> 0.3734495131 | F32: 0.1516455415 | G32: 0.4749049454 | I32: 28 | J32: -0.7601058365
E33: =MMULT(E32:G32,$A$5:$C$7) -> 0.3924737974 | F33: 0.1565784648 | G33: 0.4509477378 | I33: 29 | J33: -0.7803217731
E34: =MMULT(E33:G33,$A$5:$C$7) -> 0.3758835732 | F34: 0.1522766839 | G34: 0.4718397429 | I34: 30 | J34: -0.7789704182
E35: =MMULT(E34:G34,$A$5:$C$7) -> 0.3903511629 | F35: 0.1560280739 | G35: 0.4536207632 | I35: 31 | J35: -0.79642693
E36: =MMULT(E35:G35,$A$5:$C$7) -> 0.3777346274 | F36: 0.1527566551 | G36: 0.4695087175 | I36: 32 | J36: -0.7974819456
E37: =MMULT(E36:G36,$A$5:$C$7) -> 0.3887369416 | F37: 0.1556095126 | G37: 0.4556535459 | I37: 33 | J37: -0.8128399697
E38: =MMULT(E37:G37,$A$5:$C$7) -> 0.3791423174 | F38: 0.1531216636 | G38: 0.467736019 | I38: 34 | J38: =E38*($B$5-$C$5)+F38*($C$6-$A$6)+G38*($A$7-$B$7)+J37 -> -0.8157249823
E39: =MMULT(E38:G38,$A$5:$C$7) -> 0.3875093584 | F39: 0.155291205 | G39: 0.4571994366 | I39: 35 | J39: -0.8294871481
E40: =MMULT(E39:G39,$A$5:$C$7) -> 0.3802128376 | F40: 0.1533992454 | G40: 0.466387917 | I40: 36 | J40: -0.833763837
E41: =MMULT(E40:G40,$A$5:$C$7) -> 0.3865758058 | F41: 0.1550491384 | G41: 0.4583750558 | I41: 37 | J41: -0.8463123845
E42: =MMULT(E41:G41,$A$5:$C$7) -> 0.3810269469 | F42: 0.1536103408 | G42: 0.4653627123 | I42: 38 | J42: -0.8516474154
E43: =MMULT(E42:G42,$A$5:$C$7) -> 0.3858658576 | F43: 0.1548650516 | G43: 0.4592690908 | I43: 39 | J43: -0.8632730303
E44: =MMULT(E43:G43,$A$5:$C$7) -> 0.3816460608 | F44: 0.1537708746 | G44: 0.4645830646 | I44: 40 | J44: -0.8694129093
E45: =MMULT(E44:G44,$A$5:$C$7) -> 0.3853259561 | F45: 0.1547250572 | G45: 0.4599489866 | I45: 41 | J45: -0.8803366523
E46: =MMULT(E45:G45,$A$5:$C$7) -> 0.3821168846 | F46: 0.1538929574 | G46: 0.4639901579 | I46: 42 | J46: -0.8870886023
E47: =MMULT(E46:G46,$A$5:$C$7) -> 0.3849153718 | F47: 0.1546185943 | G47: 0.4604660339 | I47: 43 | J47: -0.8974785857
E48: =MMULT(E47:G47,$A$5:$C$7) -> 0.3824749368 | F48: 0.153985799 | G48: 0.4635392643 | I48: 44 | J48: -0.9046960035
E49: =MMULT(E48:G48,$A$5:$C$7) -> 0.3846031306 | F49: 0.1545376314 | G49: 0.460859238 | I49: 45 | J49: -0.9146800733
E50: =MMULT(E49:G49,$A$5:$C$7) -> 0.3827472283 | F50: 0.1540564031 | G50: 0.4631963686 | I50: 46 | J50: -0.9222514701
E51: =MMULT(E50:G50,$A$5:$C$7) -> 0.3843656774 | F51: 0.1544760607 | G51: 0.4611582619 | I51: 47 | J51: -0.9319268507
E52: =MMULT(E51:G51,$A$5:$C$7) -> 0.3829543006 | F52: 0.1541100961 | G52: 0.4629356032 | I52: 48 | J52: -0.9397674415
E53: =MMULT(E52:G52,$A$5:$C$7) -> 0.3841850989 | F53: 0.1544292374 | G53: 0.4613856637 | I53: 49 | J53: -0.9492080701
E54: =MMULT(E53:G53,$A$5:$C$7) -> 0.383111775 | F54: 0.1541509286 | G54: 0.4627372964 | I54: 50 | J54: -0.9572533776
E55: =MMULT(E54:G54,$A$5:$C$7) -> 0.3840477726 | F55: 0.1543936292 | G55: 0.4615585982 | I55: 51 | J55: -0.966515482
E56: =MMULT(E55:G55,$A$5:$C$7) -> 0.3832315311 | F56: 0.1541819809 | G56: 0.462586488 | I56: 52 | J56: -0.9747164724
E57: =MMULT(E56:G56,$A$5:$C$7) -> 0.3839433387 | F57: 0.1543665499 | G57: 0.4616901114 | I57: 53 | J57: -0.9838428127
E58: =MMULT(E57:G57,$A$5:$C$7) -> 0.3833226032 | F58: 0.1542055956 | G58: 0.4624718012 | I58: 54 | J58: -0.9921621969
E59: =MMULT(E58:G58,$A$5:$C$7) -> 0.3838639187 | F59: 0.1543459566 | G59: 0.4617901247 | I59: 55 | J59: -1.001185291
E60: =MMULT(E59:G59,$A$5:$C$7) -> 0.3833918618 | F60: 0.1542235541 | G60: 0.4623845841 | I60: 56 | J60: -1.009594712
E61: =MMULT(E60:G60,$A$5:$C$7) -> 0.3838035215 | F61: 0.1543302958 | G61: 0.4618661827 | I61: 57 | J61: -1.01853929
E62: =MMULT(E61:G61,$A$5:$C$7) -> 0.3834445316 | F62: 0.1542372111 | G62: 0.4623182573 | I62: 58 | J62: -1.027017181
E63: =MMULT(E62:G62,$A$5:$C$7) -> 0.3837575905 | F63: 0.1543183861 | G63: 0.4619240233 | I63: 59 | J63: -1.035902048
E64: =MMULT(E63:G63,$A$5:$C$7) -> 0.3834845859 | F64: 0.1542475971 | G64: 0.4622678171 | I64: 60 | J64: -1.04443201
E65: =MMULT(E64:G64,$A$5:$C$7) -> 0.383722661 | F65: 0.154309329 | G65: 0.46196801 | I65: 61 | J65: -1.053271469
E66: =MMULT(E65:G65,$A$5:$C$7) -> 0.3835150464 | F66: 0.1542554953 | G66: 0.4622294583 | I66: 62 | J66: -1.061841029
E67: =MMULT(E66:G66,$A$5:$C$7) -> 0.3836960977 | F67: 0.1543024413 | G67: 0.462001461 | I67: 63 | J67: -1.070645956
E68: =MMULT(E67:G67,$A$5:$C$7) -> 0.383538211 | F68: 0.1542615018 | G68: 0.4622002872 | I68: 64 | J68: -1.079245631
E69: =MMULT(E68:G68,$A$5:$C$7) -> 0.3836758969 | F69: 0.1542972033 | G69: 0.4620268998 | I69: 65 | J69: -1.088024297
E70: =MMULT(E69:G69,$A$5:$C$7) -> 0.3835558272 | F70: 0.1542660697 | G70: 0.4621781032 | I70: 66 | J70: =E70*($B$5-$C$5)+F70*($C$6-$A$6)+G70*($A$7-$B$7)+J69 -> -1.096646872
E71: =MMULT(E70:G70,$A$5:$C$7) -> 0.3836605346 | F71: 0.1542932199 | G71: 0.4620462455 | I71: 67 | J71: -1.105405567
E72: =MMULT(E71:G71,$A$5:$C$7) -> 0.383569224 | F72: 0.1542695434 | G72: 0.4621612327 | I72: 68 | J72: -1.114045558
E73: =MMULT(E72:G72,$A$5:$C$7) -> 0.3836488519 | F73: 0.1542901906 | G73: 0.4620609575 | I73: 69 | J73: -1.122789066
E74: =MMULT(E73:G73,$A$5:$C$7) -> 0.3835794119 | F74: 0.1542721851 | G74: 0.462148403 | I74: 70 | J74: -1.131442301
E75: =MMULT(E74:G74,$A$5:$C$7) -> 0.3836399674 | F75: 0.1542878869 | G75: 0.4620721457 | I75: 71 | J75: -1.140174259
E76: =MMULT(E75:G75,$A$5:$C$7) -> 0.3835871597 | F76: 0.1542741941 | G76: 0.4621386462 | I76: 72 | J76: -1.148837566
E77: =MMULT(E76:G76,$A$5:$C$7) -> 0.3836332109 | F77: 0.154286135 | G77: 0.4620806541 | I77: 73 | J77: -1.157560741
E78: =MMULT(E77:G77,$A$5:$C$7) -> 0.3835930517 | F78: 0.1542757218 | G78: 0.4621312264 | I78: 74 | J78: -1.166231708
E79: =MMULT(E78:G78,$A$5:$C$7) -> 0.3836280728 | F79: 0.1542848027 | G79: 0.4620871246 | I79: 75 | J79: -1.174948202
E80: =MMULT(E79:G79,$A$5:$C$7) -> 0.3835975325 | F80: 0.1542768837 | G80: 0.4621255838 | I80: 76 | J80: -1.183624995
E81: =MMULT(E80:G80,$A$5:$C$7) -> 0.3836241653 | F81: 0.1542837895 | G81: 0.4620920452 | I81: 77 | J81: -1.19233641
E82: =MMULT(E81:G81,$A$5:$C$7) -> 0.38360094 | F82: 0.1542777672 | G82: 0.4621212927 | I82: 78 | J82: -1.201017632
E83: =MMULT(E82:G82,$A$5:$C$7) -> 0.3836211937 | F83: 0.154283019 | G83: 0.4620957873 | I83: 79 | J83: -1.209725183
E84: =MMULT(E83:G83,$A$5:$C$7) -> 0.3836035314 | F84: 0.1542784392 | G84: 0.4621180295 | I84: 80 | J84: -1.218409774
E85: =MMULT(E84:G84,$A$5:$C$7) -> 0.3836189339 | F85: 0.154282433 | G85: 0.4620986331 | I85: 81 | J85: -1.227114388
E86: =MMULT(E85:G85,$A$5:$C$7) -> 0.3836055021 | F86: 0.1542789502 | G86: 0.4621155478 | I86: 82 | J86: -1.235801541
E87: =MMULT(E86:G86,$A$5:$C$7) -> 0.3836172154 | F87: 0.1542819874 | G87: 0.4621007972 | I87: 83 | J87: -1.244503921
E88: =MMULT(E87:G87,$A$5:$C$7) -> 0.3836070007 | F88: 0.1542793388 | G88: 0.4621136605 | I88: 84 | J88: -1.253193022
E89: =MMULT(E88:G88,$A$5:$C$7) -> 0.3836159085 | F89: 0.1542816485 | G89: 0.462102443 | I89: 85 | J89: -1.261893703
E90: =MMULT(E89:G89,$A$5:$C$7) -> 0.3836081404 | F90: 0.1542796343 | G90: 0.4621122253 | I90: 86 | J90: -1.270584286
E91: =MMULT(E90:G90,$A$5:$C$7) -> 0.3836149146 | F91: 0.1542813908 | G91: 0.4621036946 | I91: 87 | J91: -1.279283675
E92: =MMULT(E91:G91,$A$5:$C$7) -> 0.3836090071 | F92: 0.154279859 | G92: 0.4621111338 | I92: 88 | J92: -1.287975384
E93: =MMULT(E92:G92,$A$5:$C$7) -> 0.3836141588 | F93: 0.1542811948 | G93: 0.4621046464 | I93: 89 | J93: -1.29667379
E94: =MMULT(E93:G93,$A$5:$C$7) -> 0.3836096663 | F94: 0.1542800299 | G94: 0.4621103038 | I94: 90 | J94: -1.305366356
E95: =MMULT(E94:G94,$A$5:$C$7) -> 0.383613584 | F95: 0.1542810458 | G95: 0.4621053703 | I95: 91 | J95: -1.314064016
E96: =MMULT(E95:G95,$A$5:$C$7) -> 0.3836101675 | F96: 0.1542801599 | G96: 0.4621096726 | I96: 92 | J96: -1.322757233
E97: =MMULT(E96:G96,$A$5:$C$7) -> 0.3836131469 | F97: 0.1542809324 | G97: 0.4621059207 | I97: 93 | J97: -1.331454324
E98: =MMULT(E97:G97,$A$5:$C$7) -> 0.3836105487 | F98: 0.1542802587 | G98: 0.4621091926 | I98: 94 | J98: -1.340148038
E99: =MMULT(E98:G98,$A$5:$C$7) -> 0.3836128144 | F99: 0.1542808462 | G99: 0.4621063393 | I99: 95 | J99: -1.348844696
E100: =MMULT(E99:G99,$A$5:$C$7) -> 0.3836108386 | F100: 0.1542803339 | G100: 0.4621088275 | I100: 96 | J100: -1.357538786
E101: =MMULT(E100:G100,$A$5:$C$7) -> 0.3836125616 | F101: 0.1542807807 | G101: 0.4621066577 | I101: 97 | J101: -1.366235117
E102: =MMULT(E101:G101,$A$5:$C$7) -> 0.383611059 | F102: 0.1542803911 | G102: 0.4621085499 | I102: 98 | J102: -1.374929493
E103: =MMULT(E102:G102,$A$5:$C$7) -> 0.3836123694 | F103: 0.1542807308 | G103: 0.4621068998 | I103: 99 | J103: -1.383625574
E104: =MMULT(E103:G103,$A$5:$C$7) -> 0.3836112267 | F104: 0.1542804345 | G104: 0.4621083388 | I104: 100 | J104: -1.392320168 | K104: Final M
E107: Finding Exact Steady-state probabilities (as # flips --> infinity)
E108: Transpose the transition matrix:
E109: =TRANSPOSE(A5:C7) -> 0 | F109: 0.255 | G109: 0.745
E110: 0.095 | F110: 0 | G110: 0.255
E111: 0.905 | F111: 0.745 | G111: 0
E113: Subtract the identity matrix:
E114: -1 | F114: =F109 -> 0.255 | G114: =G109 -> 0.745
E115: =E110 -> 0.095 | F115: -1 | G115: =G110 -> 0.255
E116: =E111 -> 0.905 | F116: =F111 -> 0.745 | G116: -1
E118: Replace the last row (any row would work) with the
E119: constraint that the probabilities sum to one:
E120: =E114 -> -1 | F120: 0.255 | G120: 0.745 | H120: p0 | J120: 0
E121: 0.095 | F121: -1 | G121: 0.255 | H121: p1 | I121: = | J121: 0
E122: 1 | F122: 1 | G122: 1 | H122: p2 | J122: 1
E124: Invert the matrix:
E125: =MINVERSE(E120:G122) -> -0.5943430851 | F125: 0.2320542723 | G125: 0.383611759
E126: 0.0757728236 | F126: -0.8263973574 | G126: 0.1542805726
E127: 0.5185702615 | F127: 0.5943430851 | G127: 0.4621076684
E129: Multiply both sides by the inverse to find the steady-state solution:
E130: =MMULT(E125:G127,J120:J122) -> 0.383611759
E131: 0.1542805726
E132: 0.4621076684
E134: Difference between probabilties at 100th flip and steady-state:
E135: Position | F135: 100th flip | G135: Steady-state | H135: Difference | I135: Conclusion
E136: 0 | F136: =E104 -> 0.3836112267 | G136: =E130 -> 0.383611759 | H136: =F136-G136 -> -5.322951598e-07 | I136: After 100 flips, the probabilities
E137: 1 | F137: =F104 -> 0.1542804345 | G137: =E131 -> 0.1542805726 | H137: =F137-G137 -> -1.380220747e-07 | I137: ="are"&IF(AND(H136=0,H137=0,H138=0),""," almost")&" at the steady-state." -> are almost at the steady-state.
E138: 2 | F138: =G104 -> 0.4621083388 | G138: =E132 -> 0.4621076684 | H138: =F138-G138 -> 6.703172352e-07
E140: Expected M for the next flip in the steady-state
E141: =E130*(B5-C5)+E131*(C6-A6)+E132*(A7-B7) -> -0.008695286694

Sheet MCParr (hidden)
A1: Analytical Solution via Markov Chain
I2: Initial M | J2: 0
A3: epsilon | B3: 0.005 | E3: Mod(M,3)
A4: Transition Matrix: Parrondo | E4: 0 | F4: 1 | G4: 2 | I4: Flip # | J4: Expected M
A5: 0 | B5: =0.5*(0.5-$B$3)+0.5*(0.1-$B$3) -> 0.295 | C5: =0.5*(0.5+$B$3)+0.5*(0.9+$B$3) -> 0.705 | E5: =IF(MOD($J$2,3)=0,1,0) -> 1 | F5: =IF(MOD($J$2,3)=1,1,0) -> 0 | G5: =IF(MOD($J$2,3)=2,1,0) -> 0 | I5: 1 | J5: =E5*($B$5-$C$5)+F5*($C$6-$A$6)+G5*($A$7-$B$7)+J2 -> -0.41
A6: =0.5*(0.5+$B$3)+0.5*(0.25+$B$3) -> 0.38 | B6: 0 | C6: =0.5*(0.5-$B$3)+0.5*(0.75-$B$3) -> 0.62 | E6: =MMULT(E5:G5,$A$5:$C$7) -> 0 | F6: 0.295 | G6: 0.705 | I6: 2 | J6: =E6*($B$5-$C$5)+F6*($C$6-$A$6)+G6*($A$7-$B$7)+J5 -> -0.17
A7: =0.5*(0.5-$B$3)+0.5*(0.75-$B$3) -> 0.62 | B7: =0.5*(0.5+$B$3)+0.5*(0.25+$B$3) -> 0.38 | C7: 0 | E7: =MMULT(E6:G6,$A$5:$C$7) -> 0.5492 | F7: 0.2679 | G7: 0.1829 | I7: 3 | J7: -0.28698
E8: =MMULT(E7:G7,$A$5:$C$7) -> 0.2152 | F8: 0.231516 | G8: 0.553284 | I8: 4 | J8: -0.18686
E9: =MMULT(E8:G8,$A$5:$C$7) -> 0.43101216 | F9: 0.27373192 | G9: 0.29525592 | I9: 5 | J9: -0.227017904
A10: Transition Matrix: Game A | E10: =MMULT(E9:G9,$A$5:$C$7) -> 0.2870768 | F10: 0.2393458368 | G10: 0.4735773632 | I10: 6 | J10: -0.173617824
E11: =MMULT(E10:G10,$A$5:$C$7) -> 0.3845693832 | F11: 0.264647054 | G11: 0.3507835628 | I11: 7 | J11: -0.1835879231
A12: 0 | B12: =0.5-$B$3 -> 0.495 | C12: =0.5+$B$3 -> 0.505 | E12: =MMULT(E11:G11,$A$5:$C$7) -> 0.3180516895 | F12: 0.2467457219 | G12: 0.4352025886 | I12: 8 | J12: -0.1503215212
A13: =0.5+$B$3 -> 0.505 | B13: 0 | C13: =0.5-$B$3 -> 0.495 | E13: =MMULT(E12:G12,$A$5:$C$7) -> 0.3635889793 | F13: 0.2592022321 | G13: 0.3772087887 | I13: 9 | J13: -0.1466543577
A14: =0.5-$B$3 -> 0.495 | B14: =0.5+$B$3 -> 0.505 | C14: 0 | E14: =MMULT(E13:G13,$A$5:$C$7) -> 0.3323662972 | F14: 0.2505980886 | G14: 0.4170356143 | I14: 10 | J14: -0.1226924509
E15: =MMULT(E14:G14,$A$5:$C$7) -> 0.3537893545 | F15: 0.2565215911 | G15: 0.3896890544 | I15: 11 | J15: -0.1126555313
A16: Transition Matrix: Game B | E16: =MMULT(E15:G15,$A$5:$C$7) -> 0.3390854183 | F16: 0.2524497003 | G16: 0.4084648814 | I16: 12 | J16: -0.09306105325
E17: =MMULT(E16:G16,$A$5:$C$7) -> 0.3491791126 | F17: 0.2552468533 | G17: 0.3955740341 | I17: 13 | J17: -0.08002747641
A18: 0 | B18: =0.1-$B$3 -> 0.095 | C18: =0.9+$B$3 -> 0.905 | E18: =MMULT(E17:G17,$A$5:$C$7) -> 0.3422497054 | F18: 0.2533259712 | G18: 0.4044243234 | I18: 14 | J18: -0.06248978493
A19: =0.25+$B$3 -> 0.255 | B19: 0 | C19: =0.75-$B$3 -> 0.745 | E19: =MMULT(E18:G18,$A$5:$C$7) -> 0.3470069496 | F19: 0.254644906 | G19: 0.3983481444 | I19: 15 | J19: -0.04804430215
A20: =0.75-$B$3 -> 0.745 | B20: =0.25+$B$3 -> 0.255 | C20: 0 | E20: =MMULT(E19:G19,$A$5:$C$7) -> 0.3437409138 | F20: 0.253739345 | G20: 0.4025197412 | I20: 16 | J20: -0.03147589614
E21: =MMULT(E20:G20,$A$5:$C$7) -> 0.3459831906 | F21: 0.2543610712 | G21: 0.3996557382 | I21: 17 | J21: -0.01636497004
E22: =MMULT(E21:G21,$A$5:$C$7) -> 0.3444437647 | F22: 0.2539342217 | G22: 0.4016220135 | I22: 18 | J22: -0.0002534171095
E23: =MMULT(E22:G22,$A$5:$C$7) -> 0.3455006527 | F23: 0.2542272757 | G23: 0.4002720716 | I23: 19 | J23: 0.01517115866
E24: =MMULT(E23:G23,$A$5:$C$7) -> 0.3447750492 | F24: 0.2540260797 | G24: 0.4011988711 | I24: 20 | J24: 0.0310673767
E25: =MMULT(E24:G24,$A$5:$C$7) -> 0.3452732104 | F25: 0.2541642105 | G25: 0.4005625791 | I25: 21 | J25: 0.04663978996
E26: =MMULT(E25:G25,$A$5:$C$7) -> 0.344931199 | F26: 0.2540693771 | G26: 0.4009994238 | I26: 22 | J26: 0.06243451058
E27: =MMULT(E26:G26,$A$5:$C$7) -> 0.3451660061 | F27: 0.2541344848 | G27: 0.4006995091 | I27: 23 | J27: 0.07807660662
E28: =MMULT(E27:G27,$A$5:$C$7) -> 0.3450047999 | F28: 0.2540897853 | G28: 0.4009054148 | I28: 24 | J28: 0.0938234867
E29: =MMULT(E28:G28,$A$5:$C$7) -> 0.3451154756 | F29: 0.2541204736 | G29: 0.4007640508 | I29: 25 | J29: 0.1094984276
E30: =MMULT(E29:G29,$A$5:$C$7) -> 0.3450394915 | F30: 0.2540994046 | G30: 0.4008611039 | I30: 26 | J30: 0.1252227581
E31: =MMULT(E30:G30,$A$5:$C$7) -> 0.3450916582 | F31: 0.2541138695 | G31: 0.4007944723 | I31: 27 | J31: 0.1409131803
E32: =MMULT(E31:G31,$A$5:$C$7) -> 0.3450558432 | F32: 0.2541039387 | G32: 0.4008402181 | I32: 28 | J32: 0.1566268822
E33: =MMULT(E32:G32,$A$5:$C$7) -> 0.3450804319 | F33: 0.2541107566 | G33: 0.4008088115 | I33: 29 | J33: 0.1723246014
E34: =MMULT(E33:G33,$A$5:$C$7) -> 0.3450635506 | F34: 0.2541060758 | G34: 0.4008303736 | I34: 30 | J34: 0.1880332935
E35: =MMULT(E34:G34,$A$5:$C$7) -> 0.3450751404 | F35: 0.2541092894 | G35: 0.4008155702 | I35: 31 | J35: 0.2037344522
E36: =MMULT(E35:G35,$A$5:$C$7) -> 0.3450671835 | F36: 0.2541070831 | G36: 0.4008257334 | I36: 32 | J36: 0.219440783
E37: =MMULT(E36:G36,$A$5:$C$7) -> 0.3450726463 | F37: 0.2541085978 | G37: 0.4008187559 | I37: 33 | J37: 0.2351435629
E38: =MMULT(E37:G37,$A$5:$C$7) -> 0.3450688958 | F38: 0.2541075579 | G38: 0.4008235463 | I38: 34 | J38: =E38*($B$5-$C$5)+F38*($C$6-$A$6)+G38*($A$7-$B$7)+J37 -> 0.2508487806
E39: =MMULT(E38:G38,$A$5:$C$7) -> 0.3450714707 | F39: 0.2541082719 | G39: 0.4008202574 | I39: 35 | J39: 0.2665523247
E40: =MMULT(E39:G39,$A$5:$C$7) -> 0.3450697029 | F40: 0.2541077817 | G40: 0.4008225154 | I40: 36 | J40: 0.2822570178
E41: =MMULT(E40:G40,$A$5:$C$7) -> 0.3450709166 | F41: 0.2541081182 | G41: 0.4008209652 | I41: 37 | J41: 0.297960922
E42: =MMULT(E41:G41,$A$5:$C$7) -> 0.3450700833 | F42: 0.2541078872 | G42: 0.4008220295 | I42: 38 | J42: 0.3136653678
E43: =MMULT(E42:G42,$A$5:$C$7) -> 0.3450706554 | F43: 0.2541080458 | G43: 0.4008212988 | I43: 39 | J43: 0.3293694418
E44: =MMULT(E43:G43,$A$5:$C$7) -> 0.3450702627 | F44: 0.2541079369 | G44: 0.4008218005 | I44: 40 | J44: 0.3450737711
E45: =MMULT(E44:G44,$A$5:$C$7) -> 0.3450705323 | F45: 0.2541080117 | G45: 0.400821456 | I45: 41 | J45: 0.3607779251
E46: =MMULT(E45:G45,$A$5:$C$7) -> 0.3450703472 | F46: 0.2541079603 | G46: 0.4008216925 | I46: 42 | J46: 0.3764821994
E47: =MMULT(E46:G46,$A$5:$C$7) -> 0.3450704743 | F47: 0.2541079956 | G47: 0.4008215302 | I47: 43 | J47: 0.3921863911
E48: =MMULT(E47:G47,$A$5:$C$7) -> 0.345070387 | F48: 0.2541079714 | G48: 0.4008216416 | I48: 44 | J48: 0.4078906396
E49: =MMULT(E48:G48,$A$5:$C$7) -> 0.3450704469 | F49: 0.254107988 | G49: 0.4008215651 | I49: 45 | J49: 0.4235948491
E50: =MMULT(E49:G49,$A$5:$C$7) -> 0.3450704058 | F50: 0.2541079766 | G50: 0.4008216176 | I50: 46 | J50: 0.4392990853
E51: =MMULT(E50:G50,$A$5:$C$7) -> 0.345070434 | F51: 0.2541079844 | G51: 0.4008215816 | I51: 47 | J51: 0.4550033032
E52: =MMULT(E51:G51,$A$5:$C$7) -> 0.3450704146 | F52: 0.254107979 | G52: 0.4008216063 | I52: 48 | J52: 0.4707075337
E53: =MMULT(E52:G52,$A$5:$C$7) -> 0.345070428 | F53: 0.2541079827 | G53: 0.4008215893 | I53: 49 | J53: 0.4864117555
E54: =MMULT(E53:G53,$A$5:$C$7) -> 0.3450704188 | F54: 0.2541079802 | G54: 0.400821601 | I54: 50 | J54: 0.5021159833
E55: =MMULT(E54:G54,$A$5:$C$7) -> 0.3450704251 | F55: 0.2541079819 | G55: 0.400821593 | I55: 51 | J55: 0.517820207
E56: =MMULT(E55:G55,$A$5:$C$7) -> 0.3450704208 | F56: 0.2541079807 | G56: 0.4008215985 | I56: 52 | J56: 0.5335244334
E57: =MMULT(E56:G56,$A$5:$C$7) -> 0.3450704237 | F57: 0.2541079816 | G57: 0.4008215947 | I57: 53 | J57: 0.549228658
E58: =MMULT(E57:G57,$A$5:$C$7) -> 0.3450704217 | F58: 0.254107981 | G58: 0.4008215973 | I58: 54 | J58: 0.5649328839
E59: =MMULT(E58:G58,$A$5:$C$7) -> 0.3450704231 | F59: 0.2541079814 | G59: 0.4008215955 | I59: 55 | J59: 0.5806371089
E60: =MMULT(E59:G59,$A$5:$C$7) -> 0.3450704221 | F60: 0.2541079811 | G60: 0.4008215967 | I60: 56 | J60: 0.5963413345
E61: =MMULT(E60:G60,$A$5:$C$7) -> 0.3450704228 | F61: 0.2541079813 | G61: 0.4008215959 | I61: 57 | J61: 0.6120455597
E62: =MMULT(E61:G61,$A$5:$C$7) -> 0.3450704224 | F62: 0.2541079812 | G62: 0.4008215965 | I62: 58 | J62: 0.6277497851
E63: =MMULT(E62:G62,$A$5:$C$7) -> 0.3450704227 | F63: 0.2541079813 | G63: 0.4008215961 | I63: 59 | J63: 0.6434540104
E64: =MMULT(E63:G63,$A$5:$C$7) -> 0.3450704224 | F64: 0.2541079812 | G64: 0.4008215964 | I64: 60 | J64: 0.6591582358
E65: =MMULT(E64:G64,$A$5:$C$7) -> 0.3450704226 | F65: 0.2541079812 | G65: 0.4008215962 | I65: 61 | J65: 0.6748624611
E66: =MMULT(E65:G65,$A$5:$C$7) -> 0.3450704225 | F66: 0.2541079812 | G66: 0.4008215963 | I66: 62 | J66: 0.6905666865
E67: =MMULT(E66:G66,$A$5:$C$7) -> 0.3450704226 | F67: 0.2541079812 | G67: 0.4008215962 | I67: 63 | J67: 0.7062709118
E68: =MMULT(E67:G67,$A$5:$C$7) -> 0.3450704225 | F68: 0.2541079812 | G68: 0.4008215963 | I68: 64 | J68: 0.7219751372
E69: =MMULT(E68:G68,$A$5:$C$7) -> 0.3450704225 | F69: 0.2541079812 | G69: 0.4008215962 | I69: 65 | J69: 0.7376793626
E70: =MMULT(E69:G69,$A$5:$C$7) -> 0.3450704225 | F70: 0.2541079812 | G70: 0.4008215963 | I70: 66 | J70: =E70*($B$5-$C$5)+F70*($C$6-$A$6)+G70*($A$7-$B$7)+J69 -> 0.7533835879
E71: =MMULT(E70:G70,$A$5:$C$7) -> 0.3450704225 | F71: 0.2541079812 | G71: 0.4008215962 | I71: 67 | J71: 0.7690878133
E72: =MMULT(E71:G71,$A$5:$C$7) -> 0.3450704225 | F72: 0.2541079812 | G72: 0.4008215962 | I72: 68 | J72: 0.7847920386
E73: =MMULT(E72:G72,$A$5:$C$7) -> 0.3450704225 | F73: 0.2541079812 | G73: 0.4008215962 | I73: 69 | J73: 0.800496264
E74: =MMULT(E73:G73,$A$5:$C$7) -> 0.3450704225 | F74: 0.2541079812 | G74: 0.4008215962 | I74: 70 | J74: 0.8162004893
E75: =MMULT(E74:G74,$A$5:$C$7) -> 0.3450704225 | F75: 0.2541079812 | G75: 0.4008215962 | I75: 71 | J75: 0.8319047147
E76: =MMULT(E75:G75,$A$5:$C$7) -> 0.3450704225 | F76: 0.2541079812 | G76: 0.4008215962 | I76: 72 | J76: 0.84760894
E77: =MMULT(E76:G76,$A$5:$C$7) -> 0.3450704225 | F77: 0.2541079812 | G77: 0.4008215962 | I77: 73 | J77: 0.8633131654
E78: =MMULT(E77:G77,$A$5:$C$7) -> 0.3450704225 | F78: 0.2541079812 | G78: 0.4008215962 | I78: 74 | J78: 0.8790173907
E79: =MMULT(E78:G78,$A$5:$C$7) -> 0.3450704225 | F79: 0.2541079812 | G79: 0.4008215962 | I79: 75 | J79: 0.8947216161
E80: =MMULT(E79:G79,$A$5:$C$7) -> 0.3450704225 | F80: 0.2541079812 | G80: 0.4008215962 | I80: 76 | J80: 0.9104258414
E81: =MMULT(E80:G80,$A$5:$C$7) -> 0.3450704225 | F81: 0.2541079812 | G81: 0.4008215962 | I81: 77 | J81: 0.9261300668
E82: =MMULT(E81:G81,$A$5:$C$7) -> 0.3450704225 | F82: 0.2541079812 | G82: 0.4008215962 | I82: 78 | J82: 0.9418342921
E83: =MMULT(E82:G82,$A$5:$C$7) -> 0.3450704225 | F83: 0.2541079812 | G83: 0.4008215962 | I83: 79 | J83: 0.9575385175
E84: =MMULT(E83:G83,$A$5:$C$7) -> 0.3450704225 | F84: 0.2541079812 | G84: 0.4008215962 | I84: 80 | J84: 0.9732427428
E85: =MMULT(E84:G84,$A$5:$C$7) -> 0.3450704225 | F85: 0.2541079812 | G85: 0.4008215962 | I85: 81 | J85: 0.9889469682
E86: =MMULT(E85:G85,$A$5:$C$7) -> 0.3450704225 | F86: 0.2541079812 | G86: 0.4008215962 | I86: 82 | J86: 1.004651194
E87: =MMULT(E86:G86,$A$5:$C$7) -> 0.3450704225 | F87: 0.2541079812 | G87: 0.4008215962 | I87: 83 | J87: 1.020355419
E88: =MMULT(E87:G87,$A$5:$C$7) -> 0.3450704225 | F88: 0.2541079812 | G88: 0.4008215962 | I88: 84 | J88: 1.036059644
E89: =MMULT(E88:G88,$A$5:$C$7) -> 0.3450704225 | F89: 0.2541079812 | G89: 0.4008215962 | I89: 85 | J89: 1.05176387
E90: =MMULT(E89:G89,$A$5:$C$7) -> 0.3450704225 | F90: 0.2541079812 | G90: 0.4008215962 | I90: 86 | J90: 1.067468095
E91: =MMULT(E90:G90,$A$5:$C$7) -> 0.3450704225 | F91: 0.2541079812 | G91: 0.4008215962 | I91: 87 | J91: 1.08317232
E92: =MMULT(E91:G91,$A$5:$C$7) -> 0.3450704225 | F92: 0.2541079812 | G92: 0.4008215962 | I92: 88 | J92: 1.098876546
E93: =MMULT(E92:G92,$A$5:$C$7) -> 0.3450704225 | F93: 0.2541079812 | G93: 0.4008215962 | I93: 89 | J93: 1.114580771
E94: =MMULT(E93:G93,$A$5:$C$7) -> 0.3450704225 | F94: 0.2541079812 | G94: 0.4008215962 | I94: 90 | J94: 1.130284996
E95: =MMULT(E94:G94,$A$5:$C$7) -> 0.3450704225 | F95: 0.2541079812 | G95: 0.4008215962 | I95: 91 | J95: 1.145989222
E96: =MMULT(E95:G95,$A$5:$C$7) -> 0.3450704225 | F96: 0.2541079812 | G96: 0.4008215962 | I96: 92 | J96: 1.161693447
E97: =MMULT(E96:G96,$A$5:$C$7) -> 0.3450704225 | F97: 0.2541079812 | G97: 0.4008215962 | I97: 93 | J97: 1.177397672
E98: =MMULT(E97:G97,$A$5:$C$7) -> 0.3450704225 | F98: 0.2541079812 | G98: 0.4008215962 | I98: 94 | J98: 1.193101898
E99: =MMULT(E98:G98,$A$5:$C$7) -> 0.3450704225 | F99: 0.2541079812 | G99: 0.4008215962 | I99: 95 | J99: 1.208806123
E100: =MMULT(E99:G99,$A$5:$C$7) -> 0.3450704225 | F100: 0.2541079812 | G100: 0.4008215962 | I100: 96 | J100: 1.224510348
E101: =MMULT(E100:G100,$A$5:$C$7) -> 0.3450704225 | F101: 0.2541079812 | G101: 0.4008215962 | I101: 97 | J101: 1.240214574
E102: =MMULT(E101:G101,$A$5:$C$7) -> 0.3450704225 | F102: 0.2541079812 | G102: 0.4008215962 | I102: 98 | J102: 1.255918799
E103: =MMULT(E102:G102,$A$5:$C$7) -> 0.3450704225 | F103: 0.2541079812 | G103: 0.4008215962 | I103: 99 | J103: 1.271623025
E104: =MMULT(E103:G103,$A$5:$C$7) -> 0.3450704225 | F104: 0.2541079812 | G104: 0.4008215962 | I104: 100 | J104: 1.28732725 | K104: Final M
E107: Finding Exact Steady-state probabilities (as # flips --> infinity) | M107: Table 1 in paper:
E108: Transpose the transition matrix: | M108: Epsilon = 0.005 | P108: Steady-state probabilities | S108: Next Flip
E109: =TRANSPOSE(A5:C7) -> 0 | F109: 0.38 | G109: 0.62 | M109: Game A | P109: 0 | Q109: 1 | R109: 2 | S109: Expected M
E110: 0.295 | F110: 0 | G110: 0.38 | M110: 0 | N110: 0.495 | O110: 0.505 | P110: 0.3333333333 | Q110: 0.3333333333 | R110: 0.3333333333 | S110: =P110*(N110-O110)+Q110*(O111-M111)+R110*(M112-N112) -> -0.01
E111: 0.705 | F111: 0.62 | G111: 0 | M111: 0.505 | N111: 0 | O111: 0.495 | P111: 0.3333333333 | Q111: 0.3333333333 | R111: 0.3333333333
M112: 0.495 | N112: 0.505 | O112: 0 | P112: lose 0.01 | Q112: lose 0.01 | R112: lose 0.01
E113: Subtract the identity matrix:
E114: -1 | F114: =F109 -> 0.38 | G114: =G109 -> 0.62 | M114: Game B
E115: =E110 -> 0.295 | F115: -1 | G115: =G110 -> 0.38 | M115: 0 | N115: 0.095 | O115: 0.905 | P115: 0.3846153846 | Q115: 0.1538461538 | R115: 0.4615384615 | S115: =P115*(N115-O115)+Q115*(O116-M116)+R115*(M117-N117) -> -0.01
E116: =E111 -> 0.705 | F116: =F111 -> 0.62 | G116: -1 | M116: 0.255 | N116: 0 | O116: 0.745 | P116: =P115 -> 0.3846153846 | Q116: =Q115 -> 0.1538461538 | R116: =R115 -> 0.4615384615
M117: 0.745 | N117: 0.255 | O117: 0 | P117: lose 0.81 | Q117: win 0.49 | R117: win 0.49
E118: Replace the last row (any row would work) with the
E119: constraint that the probabilities sum to one: | M119: Randomly Mixed
E120: =E114 -> -1 | F120: 0.38 | G120: 0.62 | H120: p0 | J120: 0 | M120: 0 | N120: 0.295 | O120: 0.705 | P120: 0.3450704225 | Q120: 0.2541079812 | R120: 0.4008215962 | S120: =P120*(N120-O120)+Q120*(O121-M121)+R120*(M122-N122) -> 0.01570422535
E121: 0.295 | F121: -1 | G121: 0.38 | H121: p1 | I121: = | J121: 0 | M121: 0.38 | N121: 0 | O121: 0.62 | P121: =P120 -> 0.3450704225 | Q121: =Q120 -> 0.2541079812 | R121: =R120 -> 0.4008215962
E122: 1 | F122: 1 | G122: 1 | H122: p2 | J122: 1 | M122: 0.62 | N122: 0.38 | O122: 0 | P122: lose 0.41 | Q122: win 0.24 | R122: win 0.24
E124: Invert the matrix:
E125: =MINVERSE(E120:G122) -> -0.6229685807 | F125: 0.1083423619 | G125: 0.3450704225
E126: 0.03837125316 | F126: -0.7313109426 | G126: 0.2541079812
E127: 0.5845973276 | F127: 0.6229685807 | G127: 0.4008215962
E129: Multiply both sides by the inverse to find the steady-state solution:
E130: =MMULT(E125:G127,J120:J122) -> 0.3450704225
E131: 0.2541079812
E132: 0.4008215962
E134: Difference between probabilties at 100th flip and steady-state:
E135: Position | F135: 100th flip | G135: Steady-state | H135: Difference | I135: Conclusion
E136: 0 | F136: =E104 -> 0.3450704225 | G136: =E130 -> 0.3450704225 | H136: =F136-G136 -> 7.21644966e-16 | I136: After 100 flips, the probabilities
E137: 1 | F137: =F104 -> 0.2541079812 | G137: =E131 -> 0.2541079812 | H137: =F137-G137 -> 5.551115123e-16 | I137: ="are"&IF(AND(H136=0,H137=0,H138=0),""," almost")&" at the steady-state." -> are almost at the steady-state.
E138: 2 | F138: =G104 -> 0.4008215962 | G138: =E132 -> 0.4008215962 | H138: =F138-G138 -> 9.436895709e-16
E140: Expected M for the next flip in the steady-state
E141: =E130*(B5-C5)+E131*(C6-A6)+E132*(A7-B7) -> 0.01570422535

Sheet Optimal (hidden)
A1: Understanding Parrondo's Paradox | N1: Playing OPTIMALLY | Z1: 1 | AA1: Random
N2: Play sequence is AB then ABBABBABB repeatedly | AA2: ABAB
A3: Game A | G3: Game B | AA3: AABB
A4: epsilon | B4: 0.005 | C4: amount of bias in the coin | G4: Coin 1 | J4: Coin 2
A5: Prob Heads | B5: =0.5-B4 -> 0.495 | G5: Prob Heads | H5: =0.1-B4 -> 0.095 | J5: Prob Heads | K5: =0.75-B4 -> 0.745
P6: IF Game B is chosen | S6: Game B | T6: Actual
A7: Flip # | B7: Result | C7: End M | G7: Flip # | H7: Start M | I7: M/3 Remainder | J7: Coin | K7: Result | L7: End M | N7: Flip # | O7: Game | P7: Start M | Q7: M/3 Remainder | R7: Coin | S7: Result | T7: Result | U7: End M
A8: 1 | B8: =IF(RAND()<=$B$5,1,0) -> 1 | C8: =IF(B8=1,1,-1) -> 1 | G8: 1 | H8: 0 | I8: =MOD(H8,3) -> 0 | J8: =IF(I8=0,1,2) -> 1 | K8: =IF(I8=0,IF(RAND()<=$H$5,1,0),IF(RAND()<=$K$5,1,0)) -> 1 | L8: =IF(K8=1,1,-1) -> 1 | N8: 1 | O8: A | P8: 0 | Q8: =MOD(P8,3) -> 0 | R8: 1 | S8: =IF(RAND()<=$H$5,1,0) -> 0 | T8: =IF(O8="A",B8,S8) -> 1 | U8: =IF(T8=1,1,-1) -> 1
A9: 2 | B9: 0 | C9: =IF(B9=1,1+C8,-1+C8) -> 0 | G9: 2 | H9: =L8 -> 1 | I9: 1 | J9: 2 | K9: 1 | L9: =IF(K9=1,1+L8,-1+L8) -> 2 | N9: 2 | O9: B | P9: =U8 -> 1 | Q9: 1 | R9: =IF(Q9=0,1,2) -> 2 | S9: =IF(Q9=0,IF(RAND()<=$H$5,1,0),IF(RAND()<=$K$5,1,0)) -> 1 | T9: 1 | U9: =IF(T9=1,1+U8,-1+U8) -> 2
A10: 3 | B10: 0 | C10: -1 | G10: 3 | H10: 2 | I10: 2 | J10: 2 | K10: 1 | L10: 3 | N10: 3 | O10: A | P10: 2 | Q10: 2 | R10: 2 | S10: 0 | T10: 0 | U10: 1
A11: 4 | B11: 1 | C11: 0 | G11: 4 | H11: 3 | I11: 0 | J11: 1 | K11: 0 | L11: 2 | N11: 4 | O11: B | P11: 1 | Q11: 1 | R11: 2 | S11: 1 | T11: 1 | U11: 2
A12: 5 | B12: 0 | C12: -1 | G12: 5 | H12: 2 | I12: 2 | J12: 2 | K12: 1 | L12: 3 | N12: 5 | O12: B | P12: 2 | Q12: 2 | R12: 2 | S12: 1 | T12: 1 | U12: 3
A13: 6 | B13: 0 | C13: -2 | G13: 6 | H13: 3 | I13: 0 | J13: 1 | K13: 0 | L13: 2 | N13: 6 | O13: A | P13: 3 | Q13: 0 | R13: 1 | S13: 0 | T13: 0 | U13: 2
A14: 7 | B14: 0 | C14: -3 | G14: 7 | H14: 2 | I14: 2 | J14: 2 | K14: 1 | L14: 3 | N14: 7 | O14: B | P14: 2 | Q14: 2 | R14: 2 | S14: 0 | T14: 0 | U14: 1
A15: 8 | B15: 1 | C15: -2 | G15: 8 | H15: 3 | I15: 0 | J15: 1 | K15: 1 | L15: 4 | N15: 8 | O15: B | P15: 1 | Q15: 1 | R15: 2 | S15: 0 | T15: 0 | U15: 0
A16: 9 | B16: 0 | C16: -3 | G16: 9 | H16: 4 | I16: 1 | J16: 2 | K16: 1 | L16: 5 | N16: 9 | O16: A | P16: 0 | Q16: 0 | R16: 1 | S16: 0 | T16: 0 | U16: -1
A17: 10 | B17: 1 | C17: -2 | G17: 10 | H17: 5 | I17: 2 | J17: 2 | K17: 0 | L17: 4 | N17: 10 | O17: B | P17: -1 | Q17: 2 | R17: 2 | S17: 1 | T17: 1 | U17: 0
A18: 11 | B18: 0 | C18: -3 | G18: 11 | H18: 4 | I18: 1 | J18: 2 | K18: 1 | L18: 5 | N18: 11 | O18: B | P18: 0 | Q18: 0 | R18: 1 | S18: 0 | T18: 0 | U18: -1
A19: 12 | B19: 0 | C19: -4 | G19: 12 | H19: 5 | I19: 2 | J19: 2 | K19: 0 | L19: 4 | N19: 12 | O19: A | P19: -1 | Q19: 2 | R19: 2 | S19: 1 | T19: 0 | U19: -2
A20: 13 | B20: 0 | C20: -5 | G20: 13 | H20: 4 | I20: 1 | J20: 2 | K20: 1 | L20: 5 | N20: 13 | O20: B | P20: -2 | Q20: 1 | R20: 2 | S20: 0 | T20: 0 | U20: -3
A21: 14 | B21: 1 | C21: -4 | G21: 14 | H21: 5 | I21: 2 | J21: 2 | K21: 1 | L21: 6 | N21: 14 | O21: B | P21: -3 | Q21: 0 | R21: 1 | S21: 0 | T21: 0 | U21: -4
A22: 15 | B22: 0 | C22: -5 | G22: 15 | H22: 6 | I22: 0 | J22: 1 | K22: 0 | L22: 5 | N22: 15 | O22: A | P22: -4 | Q22: 2 | R22: 2 | S22: 0 | T22: 0 | U22: -5
A23: 16 | B23: 1 | C23: -4 | G23: 16 | H23: 5 | I23: 2 | J23: 2 | K23: 1 | L23: 6 | N23: 16 | O23: B | P23: -5 | Q23: 1 | R23: 2 | S23: 0 | T23: 0 | U23: -6
A24: 17 | B24: 1 | C24: -3 | G24: 17 | H24: 6 | I24: 0 | J24: 1 | K24: 0 | L24: 5 | N24: 17 | O24: B | P24: -6 | Q24: 0 | R24: 1 | S24: 0 | T24: 0 | U24: -7
A25: 18 | B25: 1 | C25: -2 | G25: 18 | H25: 5 | I25: 2 | J25: 2 | K25: 1 | L25: 6 | N25: 18 | O25: A | P25: -7 | Q25: 2 | R25: 2 | S25: 1 | T25: 1 | U25: -6
A26: 19 | B26: 1 | C26: -1 | G26: 19 | H26: 6 | I26: 0 | J26: 1 | K26: 0 | L26: 5 | N26: 19 | O26: B | P26: -6 | Q26: 0 | R26: 1 | S26: 0 | T26: 0 | U26: -7
A27: 20 | B27: 0 | C27: -2 | G27: 20 | H27: 5 | I27: 2 | J27: 2 | K27: 1 | L27: 6 | N27: 20 | O27: B | P27: -7 | Q27: 2 | R27: 2 | S27: 1 | T27: 1 | U27: -6
A28: 21 | B28: 1 | C28: -1 | G28: 21 | H28: 6 | I28: 0 | J28: 1 | K28: 0 | L28: 5 | N28: 21 | O28: A | P28: -6 | Q28: 0 | R28: 1 | S28: 0 | T28: 1 | U28: -5
A29: 22 | B29: 0 | C29: -2 | G29: 22 | H29: 5 | I29: 2 | J29: 2 | K29: 1 | L29: 6 | N29: 22 | O29: B | P29: -5 | Q29: 1 | R29: 2 | S29: 1 | T29: 1 | U29: -4
A30: 23 | B30: 0 | C30: -3 | G30: 23 | H30: 6 | I30: 0 | J30: 1 | K30: 0 | L30: 5 | N30: 23 | O30: B | P30: -4 | Q30: 2 | R30: 2 | S30: 0 | T30: 0 | U30: -5
A31: 24 | B31: 0 | C31: -4 | G31: 24 | H31: 5 | I31: 2 | J31: 2 | K31: 1 | L31: 6 | N31: 24 | O31: A | P31: -5 | Q31: 1 | R31: 2 | S31: 1 | T31: 0 | U31: -6
A32: 25 | B32: 0 | C32: -5 | G32: 25 | H32: 6 | I32: 0 | J32: 1 | K32: 0 | L32: 5 | N32: 25 | O32: B | P32: -6 | Q32: 0 | R32: 1 | S32: 0 | T32: 0 | U32: -7
A33: 26 | B33: 1 | C33: -4 | G33: 26 | H33: 5 | I33: 2 | J33: 2 | K33: 1 | L33: 6 | N33: 26 | O33: B | P33: -7 | Q33: 2 | R33: 2 | S33: 1 | T33: 1 | U33: -6
A34: 27 | B34: 0 | C34: -5 | G34: 27 | H34: 6 | I34: 0 | J34: 1 | K34: 0 | L34: 5 | N34: 27 | O34: A | P34: -6 | Q34: 0 | R34: 1 | S34: 0 | T34: 0 | U34: -7
A35: 28 | B35: 1 | C35: -4 | G35: 28 | H35: 5 | I35: 2 | J35: 2 | K35: 1 | L35: 6 | N35: 28 | O35: B | P35: -7 | Q35: 2 | R35: 2 | S35: 1 | T35: 1 | U35: -6
A36: 29 | B36: 1 | C36: -3 | G36: 29 | H36: 6 | I36: 0 | J36: 1 | K36: 0 | L36: 5 | N36: 29 | O36: B | P36: -6 | Q36: 0 | R36: 1 | S36: 1 | T36: 1 | U36: -5
A37: 30 | B37: 0 | C37: -4 | G37: 30 | H37: 5 | I37: 2 | J37: 2 | K37: 1 | L37: 6 | N37: 30 | O37: A | P37: -5 | Q37: 1 | R37: 2 | S37: 1 | T37: 0 | U37: -6
A38: 31 | B38: 0 | C38: -5 | G38: 31 | H38: 6 | I38: 0 | J38: 1 | K38: 1 | L38: 7 | N38: 31 | O38: B | P38: -6 | Q38: 0 | R38: 1 | S38: 0 | T38: 0 | U38: -7
A39: 32 | B39: 0 | C39: -6 | G39: 32 | H39: 7 | I39: 1 | J39: 2 | K39: 0 | L39: 6 | N39: 32 | O39: B | P39: -7 | Q39: 2 | R39: 2 | S39: 1 | T39: 1 | U39: -6
A40: 33 | B40: 0 | C40: -7 | G40: 33 | H40: 6 | I40: 0 | J40: 1 | K40: 0 | L40: 5 | N40: 33 | O40: A | P40: -6 | Q40: 0 | R40: 1 | S40: 0 | T40: 0 | U40: -7
A41: 34 | B41: 0 | C41: -8 | G41: 34 | H41: 5 | I41: 2 | J41: 2 | K41: 0 | L41: 4 | N41: 34 | O41: B | P41: -7 | Q41: 2 | R41: 2 | S41: 1 | T41: 1 | U41: -6
A42: 35 | B42: 1 | C42: -7 | G42: 35 | H42: 4 | I42: 1 | J42: 2 | K42: 1 | L42: 5 | N42: 35 | O42: B | P42: -6 | Q42: 0 | R42: 1 | S42: 0 | T42: 0 | U42: -7
A43: 36 | B43: 0 | C43: -8 | G43: 36 | H43: 5 | I43: 2 | J43: 2 | K43: 0 | L43: 4 | N43: 36 | O43: A | P43: -7 | Q43: 2 | R43: 2 | S43: 1 | T43: 0 | U43: -8
A44: 37 | B44: 0 | C44: -9 | G44: 37 | H44: 4 | I44: 1 | J44: 2 | K44: 1 | L44: 5 | N44: 37 | O44: B | P44: -8 | Q44: 1 | R44: 2 | S44: 1 | T44: 1 | U44: -7
A45: 38 | B45: 1 | C45: -8 | G45: 38 | H45: 5 | I45: 2 | J45: 2 | K45: 1 | L45: 6 | N45: 38 | O45: B | P45: -7 | Q45: 2 | R45: 2 | S45: 1 | T45: 1 | U45: -6
A46: 39 | B46: 0 | C46: -9 | G46: 39 | H46: 6 | I46: 0 | J46: 1 | K46: 1 | L46: 7 | N46: 39 | O46: A | P46: -6 | Q46: 0 | R46: 1 | S46: 0 | T46: 0 | U46: -7
A47: 40 | B47: 1 | C47: -8 | G47: 40 | H47: 7 | I47: 1 | J47: 2 | K47: 1 | L47: 8 | N47: 40 | O47: B | P47: -7 | Q47: 2 | R47: 2 | S47: 1 | T47: 1 | U47: -6
A48: 41 | B48: 1 | C48: -7 | G48: 41 | H48: 8 | I48: 2 | J48: 2 | K48: 1 | L48: 9 | N48: 41 | O48: B | P48: -6 | Q48: 0 | R48: 1 | S48: 0 | T48: 0 | U48: -7
A49: 42 | B49: 0 | C49: -8 | G49: 42 | H49: 9 | I49: 0 | J49: 1 | K49: 0 | L49: 8 | N49: 42 | O49: A | P49: -7 | Q49: 2 | R49: 2 | S49: 1 | T49: 0 | U49: -8
A50: 43 | B50: 1 | C50: -7 | G50: 43 | H50: 8 | I50: 2 | J50: 2 | K50: 1 | L50: 9 | N50: 43 | O50: B | P50: -8 | Q50: 1 | R50: 2 | S50: 1 | T50: 1 | U50: -7
A51: 44 | B51: 1 | C51: -6 | G51: 44 | H51: 9 | I51: 0 | J51: 1 | K51: 0 | L51: 8 | N51: 44 | O51: B | P51: -7 | Q51: 2 | R51: 2 | S51: 1 | T51: 1 | U51: -6
A52: 45 | B52: 1 | C52: -5 | G52: 45 | H52: 8 | I52: 2 | J52: 2 | K52: 1 | L52: 9 | N52: 45 | O52: A | P52: -6 | Q52: 0 | R52: 1 | S52: 0 | T52: 1 | U52: -5
A53: 46 | B53: 0 | C53: -6 | G53: 46 | H53: 9 | I53: 0 | J53: 1 | K53: 0 | L53: 8 | N53: 46 | O53: B | P53: -5 | Q53: 1 | R53: 2 | S53: 0 | T53: 0 | U53: -6
A54: 47 | B54: 1 | C54: -5 | G54: 47 | H54: 8 | I54: 2 | J54: 2 | K54: 1 | L54: 9 | N54: 47 | O54: B | P54: -6 | Q54: 0 | R54: 1 | S54: 0 | T54: 0 | U54: -7
A55: 48 | B55: 1 | C55: -4 | G55: 48 | H55: 9 | I55: 0 | J55: 1 | K55: 0 | L55: 8 | N55: 48 | O55: A | P55: -7 | Q55: 2 | R55: 2 | S55: 0 | T55: 1 | U55: -6
A56: 49 | B56: 1 | C56: -3 | G56: 49 | H56: 8 | I56: 2 | J56: 2 | K56: 0 | L56: 7 | N56: 49 | O56: B | P56: -6 | Q56: 0 | R56: 1 | S56: 0 | T56: 0 | U56: -7
A57: 50 | B57: 1 | C57: -2 | G57: 50 | H57: 7 | I57: 1 | J57: 2 | K57: 1 | L57: 8 | N57: 50 | O57: B | P57: -7 | Q57: 2 | R57: 2 | S57: 1 | T57: 1 | U57: -6
A58: 51 | B58: 1 | C58: -1 | G58: 51 | H58: 8 | I58: 2 | J58: 2 | K58: 1 | L58: 9 | N58: 51 | O58: A | P58: -6 | Q58: 0 | R58: 1 | S58: 0 | T58: 1 | U58: -5
A59: 52 | B59: 1 | C59: 0 | G59: 52 | H59: 9 | I59: 0 | J59: 1 | K59: 0 | L59: 8 | N59: 52 | O59: B | P59: -5 | Q59: 1 | R59: 2 | S59: 0 | T59: 0 | U59: -6
A60: 53 | B60: 1 | C60: 1 | G60: 53 | H60: 8 | I60: 2 | J60: 2 | K60: 0 | L60: 7 | N60: 53 | O60: B | P60: -6 | Q60: 0 | R60: 1 | S60: 0 | T60: 0 | U60: -7
A61: 54 | B61: 1 | C61: 2 | G61: 54 | H61: 7 | I61: 1 | J61: 2 | K61: 1 | L61: 8 | N61: 54 | O61: A | P61: -7 | Q61: 2 | R61: 2 | S61: 1 | T61: 1 | U61: -6
A62: 55 | B62: 0 | C62: 1 | G62: 55 | H62: 8 | I62: 2 | J62: 2 | K62: 1 | L62: 9 | N62: 55 | O62: B | P62: -6 | Q62: 0 | R62: 1 | S62: 0 | T62: 0 | U62: -7
A63: 56 | B63: 1 | C63: 2 | G63: 56 | H63: 9 | I63: 0 | J63: 1 | K63: 0 | L63: 8 | N63: 56 | O63: B | P63: -7 | Q63: 2 | R63: 2 | S63: 1 | T63: 1 | U63: -6
A64: 57 | B64: 1 | C64: 3 | G64: 57 | H64: 8 | I64: 2 | J64: 2 | K64: 1 | L64: 9 | N64: 57 | O64: A | P64: -6 | Q64: 0 | R64: 1 | S64: 0 | T64: 1 | U64: -5
A65: 58 | B65: 0 | C65: 2 | G65: 58 | H65: 9 | I65: 0 | J65: 1 | K65: 0 | L65: 8 | N65: 58 | O65: B | P65: -5 | Q65: 1 | R65: 2 | S65: 0 | T65: 0 | U65: -6
A66: 59 | B66: 1 | C66: 3 | G66: 59 | H66: 8 | I66: 2 | J66: 2 | K66: 0 | L66: 7 | N66: 59 | O66: B | P66: -6 | Q66: 0 | R66: 1 | S66: 0 | T66: 0 | U66: -7
A67: 60 | B67: 1 | C67: 4 | G67: 60 | H67: 7 | I67: 1 | J67: 2 | K67: 0 | L67: 6 | N67: 60 | O67: A | P67: -7 | Q67: 2 | R67: 2 | S67: 1 | T67: 1 | U67: -6
A68: 61 | B68: 1 | C68: 5 | G68: 61 | H68: 6 | I68: 0 | J68: 1 | K68: 0 | L68: 5 | N68: 61 | O68: B | P68: -6 | Q68: 0 | R68: 1 | S68: 0 | T68: 0 | U68: -7
A69: 62 | B69: 1 | C69: 6 | G69: 62 | H69: 5 | I69: 2 | J69: 2 | K69: 1 | L69: 6 | N69: 62 | O69: B | P69: -7 | Q69: 2 | R69: 2 | S69: 1 | T69: 1 | U69: -6
A70: 63 | B70: 1 | C70: 7 | G70: 63 | H70: 6 | I70: 0 | J70: 1 | K70: 1 | L70: 7 | N70: 63 | O70: A | P70: -6 | Q70: 0 | R70: 1 | S70: 0 | T70: 1 | U70: -5
A71: 64 | B71: 0 | C71: 6 | G71: 64 | H71: 7 | I71: 1 | J71: 2 | K71: 0 | L71: 6 | N71: 64 | O71: B | P71: -5 | Q71: 1 | R71: 2 | S71: 1 | T71: 1 | U71: -4
A72: 65 | B72: =IF(RAND()<=$B$5,1,0) -> 1 | C72: 7 | G72: 65 | H72: 6 | I72: =MOD(H72,3) -> 0 | J72: =IF(I72=0,1,2) -> 1 | K72: =IF(I72=0,IF(RAND()<=$H$5,1,0),IF(RAND()<=$K$5,1,0)) -> 1 | L72: 7 | N72: 65 | O72: B | P72: -4 | Q72: =MOD(P72,3) -> 2 | R72: 2 | S72: 0 | T72: =IF(O72="A",B72,S72) -> 0 | U72: -5
A73: 66 | B73: 0 | C73: =IF(B73=1,1+C72,-1+C72) -> 6 | G73: 66 | H73: =L72 -> 7 | I73: 1 | J73: 2 | K73: 1 | L73: =IF(K73=1,1+L72,-1+L72) -> 8 | N73: 66 | O73: A | P73: =U72 -> -5 | Q73: 1 | R73: =IF(Q73=0,1,2) -> 2 | S73: =IF(Q73=0,IF(RAND()<=$H$5,1,0),IF(RAND()<=$K$5,1,0)) -> 0 | T73: 0 | U73: =IF(T73=1,1+U72,-1+U72) -> -6
A74: 67 | B74: 1 | C74: 7 | G74: 67 | H74: 8 | I74: 2 | J74: 2 | K74: 1 | L74: 9 | N74: 67 | O74: B | P74: -6 | Q74: 0 | R74: 1 | S74: 1 | T74: 1 | U74: -5
A75: 68 | B75: 0 | C75: 6 | G75: 68 | H75: 9 | I75: 0 | J75: 1 | K75: 0 | L75: 8 | N75: 68 | O75: B | P75: -5 | Q75: 1 | R75: 2 | S75: 1 | T75: 1 | U75: -4
A76: 69 | B76: 0 | C76: 5 | G76: 69 | H76: 8 | I76: 2 | J76: 2 | K76: 0 | L76: 7 | N76: 69 | O76: A | P76: -4 | Q76: 2 | R76: 2 | S76: 1 | T76: 0 | U76: -5
A77: 70 | B77: 0 | C77: 4 | G77: 70 | H77: 7 | I77: 1 | J77: 2 | K77: 1 | L77: 8 | N77: 70 | O77: B | P77: -5 | Q77: 1 | R77: 2 | S77: 1 | T77: 1 | U77: -4
A78: 71 | B78: 0 | C78: 3 | G78: 71 | H78: 8 | I78: 2 | J78: 2 | K78: 0 | L78: 7 | N78: 71 | O78: B | P78: -4 | Q78: 2 | R78: 2 | S78: 1 | T78: 1 | U78: -3
A79: 72 | B79: 1 | C79: 4 | G79: 72 | H79: 7 | I79: 1 | J79: 2 | K79: 1 | L79: 8 | N79: 72 | O79: A | P79: -3 | Q79: 0 | R79: 1 | S79: 0 | T79: 1 | U79: -2
A80: 73 | B80: 0 | C80: 3 | G80: 73 | H80: 8 | I80: 2 | J80: 2 | K80: 0 | L80: 7 | N80: 73 | O80: B | P80: -2 | Q80: 1 | R80: 2 | S80: 1 | T80: 1 | U80: -1
A81: 74 | B81: 0 | C81: 2 | G81: 74 | H81: 7 | I81: 1 | J81: 2 | K81: 1 | L81: 8 | N81: 74 | O81: B | P81: -1 | Q81: 2 | R81: 2 | S81: 0 | T81: 0 | U81: -2
A82: 75 | B82: 1 | C82: 3 | G82: 75 | H82: 8 | I82: 2 | J82: 2 | K82: 1 | L82: 9 | N82: 75 | O82: A | P82: -2 | Q82: 1 | R82: 2 | S82: 1 | T82: 1 | U82: -1
A83: 76 | B83: 1 | C83: 4 | G83: 76 | H83: 9 | I83: 0 | J83: 1 | K83: 1 | L83: 10 | N83: 76 | O83: B | P83: -1 | Q83: 2 | R83: 2 | S83: 1 | T83: 1 | U83: 0
A84: 77 | B84: 0 | C84: 3 | G84: 77 | H84: 10 | I84: 1 | J84: 2 | K84: 1 | L84: 11 | N84: 77 | O84: B | P84: 0 | Q84: 0 | R84: 1 | S84: 0 | T84: 0 | U84: -1
A85: 78 | B85: 1 | C85: 4 | G85: 78 | H85: 11 | I85: 2 | J85: 2 | K85: 1 | L85: 12 | N85: 78 | O85: A | P85: -1 | Q85: 2 | R85: 2 | S85: 1 | T85: 1 | U85: 0
A86: 79 | B86: 1 | C86: 5 | G86: 79 | H86: 12 | I86: 0 | J86: 1 | K86: 0 | L86: 11 | N86: 79 | O86: B | P86: 0 | Q86: 0 | R86: 1 | S86: 0 | T86: 0 | U86: -1
A87: 80 | B87: 0 | C87: 4 | G87: 80 | H87: 11 | I87: 2 | J87: 2 | K87: 1 | L87: 12 | N87: 80 | O87: B | P87: -1 | Q87: 2 | R87: 2 | S87: 1 | T87: 1 | U87: 0
A88: 81 | B88: 0 | C88: 3 | G88: 81 | H88: 12 | I88: 0 | J88: 1 | K88: 0 | L88: 11 | N88: 81 | O88: A | P88: 0 | Q88: 0 | R88: 1 | S88: 0 | T88: 0 | U88: -1
A89: 82 | B89: 0 | C89: 2 | G89: 82 | H89: 11 | I89: 2 | J89: 2 | K89: 1 | L89: 12 | N89: 82 | O89: B | P89: -1 | Q89: 2 | R89: 2 | S89: 1 | T89: 1 | U89: 0
A90: 83 | B90: 1 | C90: 3 | G90: 83 | H90: 12 | I90: 0 | J90: 1 | K90: 0 | L90: 11 | N90: 83 | O90: B | P90: 0 | Q90: 0 | R90: 1 | S90: 0 | T90: 0 | U90: -1
A91: 84 | B91: 0 | C91: 2 | G91: 84 | H91: 11 | I91: 2 | J91: 2 | K91: 0 | L91: 10 | N91: 84 | O91: A | P91: -1 | Q91: 2 | R91: 2 | S91: 0 | T91: 0 | U91: -2
A92: 85 | B92: 0 | C92: 1 | G92: 85 | H92: 10 | I92: 1 | J92: 2 | K92: 1 | L92: 11 | N92: 85 | O92: B | P92: -2 | Q92: 1 | R92: 2 | S92: 1 | T92: 1 | U92: -1
A93: 86 | B93: 1 | C93: 2 | G93: 86 | H93: 11 | I93: 2 | J93: 2 | K93: 1 | L93: 12 | N93: 86 | O93: B | P93: -1 | Q93: 2 | R93: 2 | S93: 1 | T93: 1 | U93: 0
A94: 87 | B94: 0 | C94: 1 | G94: 87 | H94: 12 | I94: 0 | J94: 1 | K94: 0 | L94: 11 | N94: 87 | O94: A | P94: 0 | Q94: 0 | R94: 1 | S94: 1 | T94: 0 | U94: -1
A95: 88 | B95: 0 | C95: 0 | G95: 88 | H95: 11 | I95: 2 | J95: 2 | K95: 0 | L95: 10 | N95: 88 | O95: B | P95: -1 | Q95: 2 | R95: 2 | S95: 1 | T95: 1 | U95: 0
A96: 89 | B96: 1 | C96: 1 | G96: 89 | H96: 10 | I96: 1 | J96: 2 | K96: 1 | L96: 11 | N96: 89 | O96: B | P96: 0 | Q96: 0 | R96: 1 | S96: 0 | T96: 0 | U96: -1
A97: 90 | B97: 0 | C97: 0 | G97: 90 | H97: 11 | I97: 2 | J97: 2 | K97: 0 | L97: 10 | N97: 90 | O97: A | P97: -1 | Q97: 2 | R97: 2 | S97: 1 | T97: 0 | U97: -2
A98: 91 | B98: 0 | C98: -1 | G98: 91 | H98: 10 | I98: 1 | J98: 2 | K98: 1 | L98: 11 | N98: 91 | O98: B | P98: -2 | Q98: 1 | R98: 2 | S98: 1 | T98: 1 | U98: -1
A99: 92 | B99: 1 | C99: 0 | G99: 92 | H99: 11 | I99: 2 | J99: 2 | K99: 0 | L99: 10 | N99: 92 | O99: B | P99: -1 | Q99: 2 | R99: 2 | S99: 1 | T99: 1 | U99: 0
A100: 93 | B100: 0 | C100: -1 | G100: 93 | H100: 10 | I100: 1 | J100: 2 | K100: 1 | L100: 11 | N100: 93 | O100: A | P100: 0 | Q100: 0 | R100: 1 | S100: 0 | T100: 0 | U100: -1
A101: 94 | B101: 1 | C101: 0 | G101: 94 | H101: 11 | I101: 2 | J101: 2 | K101: 1 | L101: 12 | N101: 94 | O101: B | P101: -1 | Q101: 2 | R101: 2 | S101: 1 | T101: 1 | U101: 0
A102: 95 | B102: 1 | C102: 1 | G102: 95 | H102: 12 | I102: 0 | J102: 1 | K102: 0 | L102: 11 | N102: 95 | O102: B | P102: 0 | Q102: 0 | R102: 1 | S102: 0 | T102: 0 | U102: -1
A103: 96 | B103: 1 | C103: 2 | G103: 96 | H103: 11 | I103: 2 | J103: 2 | K103: 1 | L103: 12 | N103: 96 | O103: A | P103: -1 | Q103: 2 | R103: 2 | S103: 1 | T103: 1 | U103: 0
A104: 97 | B104: 1 | C104: 3 | G104: 97 | H104: 12 | I104: =MOD(H104,3) -> 0 | J104: =IF(I104=0,1,2) -> 1 | K104: 0 | L104: 11 | N104: 97 | O104: B | P104: 0 | Q104: =MOD(P104,3) -> 0 | R104: 1 | S104: 0 | T104: =IF(O104="A",B104,S104) -> 0 | U104: -1
A105: 98 | B105: 1 | C105: =IF(B105=1,1+C104,-1+C104) -> 4 | G105: 98 | H105: 11 | I105: =MOD(H105,3) -> 2 | J105: =IF(I105=0,1,2) -> 2 | K105: 1 | L105: =IF(K105=1,1+L104,-1+L104) -> 12 | N105: 98 | O105: B | P105: -1 | Q105: =MOD(P105,3) -> 2 | R105: =IF(Q105=0,1,2) -> 2 | S105: 0 | T105: =IF(O105="A",B105,S105) -> 0 | U105: =IF(T105=1,1+U104,-1+U104) -> -2
A106: 99 | B106: 1 | C106: =IF(B106=1,1+C105,-1+C105) -> 5 | G106: 99 | H106: 12 | I106: =MOD(H106,3) -> 0 | J106: =IF(I106=0,1,2) -> 1 | K106: 0 | L106: =IF(K106=1,1+L105,-1+L105) -> 11 | N106: 99 | O106: A | P106: -2 | Q106: =MOD(P106,3) -> 1 | R106: =IF(Q106=0,1,2) -> 2 | S106: 0 | T106: =IF(O106="A",B106,S106) -> 1 | U106: =IF(T106=1,1+U105,-1+U105) -> -1
A107: 100 | B107: 0 | C107: =IF(B107=1,1+C106,-1+C106) -> 4 | G107: 100 | H107: 11 | I107: =MOD(H107,3) -> 2 | J107: =IF(I107=0,1,2) -> 2 | K107: 0 | L107: =IF(K107=1,1+L106,-1+L106) -> 10 | N107: 100 | O107: B | P107: -1 | Q107: =MOD(P107,3) -> 2 | R107: =IF(Q107=0,1,2) -> 2 | S107: 1 | T107: =IF(O107="A",B107,S107) -> 1 | U107: =IF(T107=1,1+U106,-1+U106) -> 0

Sheet MCParrOpt (hidden)
A1: Analytical Solution via Markov Chain
I2: Initial M | J2: 0
A3: epsilon | B3: 0.005 | E3: Mod(M,3)
A4: Transition Matrix: Game A | D4: Game | E4: 0 | F4: 1 | G4: 2 | I4: Flip # | J4: Expected M
D5: A | E5: =IF(MOD($J$2,3)=0,1,0) -> 1 | F5: =IF(MOD($J$2,3)=1,1,0) -> 0 | G5: =IF(MOD($J$2,3)=2,1,0) -> 0 | I5: 1 | J5: =IF(D5="A",E5*($B$6-$C$6)+F5*($C$7-$A$7)+G5*($A$8-$B$8),E5*($B$12-$C$12)+F5*($C$13-$A$13)+G5*($A$14-$B$14))+J2 -> -0.01
A6: 0 | B6: =0.5-B3 -> 0.495 | C6: =0.5+B3 -> 0.505 | D6: B | E6: =IF(D5="A",MMULT(E5:G5,$A$6:$C$8),MMULT(E5:G5,$A$12:$C$14)) -> 0 | F6: 0.495 | G6: 0.505 | I6: 2 | J6: =IF(D6="A",E6*($B$6-$C$6)+F6*($C$7-$A$7)+G6*($A$8-$B$8),E6*($B$12-$C$12)+F6*($C$13-$A$13)+G6*($A$14-$B$14))+J5 -> 0.48
A7: =0.5+B3 -> 0.505 | B7: 0 | C7: =0.5-B3 -> 0.495 | D7: A | E7: =IF(D6="A",MMULT(E6:G6,$A$6:$C$8),MMULT(E6:G6,$A$12:$C$14)) -> 0.50245 | F7: 0.128775 | G7: 0.368775 | I7: 3 | J7: =IF(D7="A",E7*($B$6-$C$6)+F7*($C$7-$A$7)+G7*($A$8-$B$8),E7*($B$12-$C$12)+F7*($C$13-$A$13)+G7*($A$14-$B$14))+J6 -> 0.47
A8: =0.5-B3 -> 0.495 | B8: =0.5+B3 -> 0.505 | C8: 0 | D8: B | E8: =IF(D7="A",MMULT(E7:G7,$A$6:$C$8),MMULT(E7:G7,$A$12:$C$14)) -> 0.247575 | F8: 0.434944125 | G8: 0.317480875 | I8: 4 | J8: 0.6381525
D9: B | E9: =IF(D8="A",MMULT(E8:G8,$A$6:$C$8),MMULT(E8:G8,$A$12:$C$14)) -> 0.3474340037 | F9: 0.1044772481 | G9: 0.5480887481 | I9: 5 | J9: 0.6764882951
A10: Transition Matrix: Game B | D10: A | E10: =IF(D9="A",MMULT(E9:G9,$A$6:$C$8),MMULT(E9:G9,$A$12:$C$14)) -> 0.4349678156 | F10: 0.1727688611 | G10: 0.3922633232 | I10: 6 | J10: 0.6664882951
D11: B | E11: =IF(D10="A",MMULT(E10:G10,$A$6:$C$8),MMULT(E10:G10,$A$12:$C$14)) -> 0.2814186199 | F11: 0.413402047 | G11: 0.3051793331 | I11: 7 | J11: 0.7906440893
A12: 0 | B12: =0.1-B3 -> 0.095 | C12: =0.9+B3 -> 0.905 | D12: B | E12: =IF(D11="A",MMULT(E11:G11,$A$6:$C$8),MMULT(E11:G11,$A$12:$C$14)) -> 0.3327761252 | F12: 0.1045554988 | G12: 0.562668376 | I12: 8 | J12: 0.8480351266
A13: =0.25+B3 -> 0.255 | B13: 0 | C13: =0.75-B3 -> 0.745 | D13: A | E13: =IF(D12="A",MMULT(E12:G12,$A$6:$C$8),MMULT(E12:G12,$A$12:$C$14)) -> 0.4458495923 | F13: 0.1750941678 | G13: 0.3790562399 | I13: 9 | J13: 0.8380351266
A14: =0.75-B3 -> 0.745 | B14: =0.25+B3 -> 0.255 | C14: 0 | D14: B | E14: =IF(D13="A",MMULT(E13:G13,$A$6:$C$8),MMULT(E13:G13,$A$12:$C$14)) -> 0.2760553935 | F14: 0.4121189494 | G14: 0.3118256572 | I14: 10 | J14: 0.969163115
D15: B | E15: =IF(D14="A",MMULT(E14:G14,$A$6:$C$8),MMULT(E14:G14,$A$12:$C$14)) -> 0.3374004467 | F15: 0.105740805 | G15: 0.5568587484 | I15: 11 | J15: 1.020542534
D16: A | E16: =IF(D15="A",MMULT(E15:G15,$A$6:$C$8),MMULT(E15:G15,$A$12:$C$14)) -> 0.4418236728 | F16: 0.1740520233 | G16: 0.3841243039 | I16: 12 | J16: 1.010542534
D17: B | E17: =IF(D16="A",MMULT(E16:G16,$A$6:$C$8),MMULT(E16:G16,$A$12:$C$14)) -> 0.2780378022 | F17: 0.4126854915 | G17: 0.3092767063 | I17: 13 | J17: 1.139093392
D18: B | E18: =IF(D17="A",MMULT(E17:G17,$A$6:$C$8),MMULT(E17:G17,$A$12:$C$14)) -> 0.3356459465 | F18: 0.1052791513 | G18: 0.5590749022 | I18: 14 | J18: 1.192753661
D19: A | E19: =IF(D18="A",MMULT(E18:G18,$A$6:$C$8),MMULT(E18:G18,$A$12:$C$14)) -> 0.4433569857 | F19: 0.174450465 | G19: 0.3821925493 | I19: 15 | J19: 1.182753661
D20: B | E20: =IF(D19="A",MMULT(E19:G19,$A$6:$C$8),MMULT(E19:G19,$A$12:$C$14)) -> 0.2772827967 | F20: 0.4124689453 | G20: 0.3102482579 | I20: 16 | J20: 1.312286025
D21: B | E21: =IF(D20="A",MMULT(E20:G20,$A$6:$C$8),MMULT(E20:G20,$A$12:$C$14)) -> 0.3363145332 | F21: 0.1054551715 | G21: 0.5582302953 | I21: 17 | J21: 1.365077132 | M21: Final M | N21: =J104 -> 6.136226899
D22: A | E22: =IF(D21="A",MMULT(E21:G21,$A$6:$C$8),MMULT(E21:G21,$A$12:$C$14)) -> 0.4427726387 | F22: 0.174298606 | G22: 0.3829287553 | I22: 18 | J22: 1.355077132
D23: B | E23: =IF(D22="A",MMULT(E22:G22,$A$6:$C$8),MMULT(E22:G22,$A$12:$C$14)) -> 0.2775705299 | F23: 0.4125514776 | G23: 0.3098779925 | I23: 19 | J23: 1.484235443
D24: B | E24: =IF(D23="A",MMULT(E23:G23,$A$6:$C$8),MMULT(E23:G23,$A$12:$C$14)) -> 0.3360597312 | F24: 0.1053880884 | G24: 0.5585521804 | I24: 20 | J24: 1.537357793
D25: A | E25: =IF(D24="A",MMULT(E24:G24,$A$6:$C$8),MMULT(E24:G24,$A$12:$C$14)) -> 0.4429953369 | F25: 0.1743564805 | G25: 0.3826481826 | I25: 21 | J25: 1.527357793
D26: B | E26: =IF(D25="A",MMULT(E25:G25,$A$6:$C$8),MMULT(E25:G25,$A$12:$C$14)) -> 0.277460873 | F26: 0.412520024 | G26: 0.310019103 | I26: 22 | J26: 1.656658658
D27: B | E27: =IF(D26="A",MMULT(E26:G26,$A$6:$C$8),MMULT(E26:G26,$A$12:$C$14)) -> 0.3361568378 | F27: 0.1054136542 | G27: 0.558429508 | I27: 23 | J27: 1.709654769
D28: A | E28: =IF(D27="A",MMULT(E27:G27,$A$6:$C$8),MMULT(E27:G27,$A$12:$C$14)) -> 0.4429104653 | F28: 0.1743344241 | G28: 0.3827551106 | I28: 24 | J28: 1.699654769
D29: B | E29: =IF(D28="A",MMULT(E28:G28,$A$6:$C$8),MMULT(E28:G28,$A$12:$C$14)) -> 0.2775026639 | F29: 0.4125320112 | G29: 0.3099653249 | I29: 25 | J29: 1.828901305
D30: B | E30: =IF(D29="A",MMULT(E29:G29,$A$6:$C$8),MMULT(E29:G29,$A$12:$C$14)) -> 0.3361198299 | F30: 0.1054039109 | G30: 0.5584762592 | I30: 26 | J30: 1.881945527
D31: A | E31: =IF(D30="A",MMULT(E30:G30,$A$6:$C$8),MMULT(E30:G30,$A$12:$C$14)) -> 0.4429428104 | F31: 0.1743428299 | G31: 0.3827143597 | I31: 27 | J31: 1.871945527
D32: B | E32: =IF(D31="A",MMULT(E31:G31,$A$6:$C$8),MMULT(E31:G31,$A$12:$C$14)) -> 0.2774867372 | F32: 0.4125274428 | G32: 0.3099858201 | I32: 28 | J32: 2.001212768
D33: B | E33: =IF(D32="A",MMULT(E32:G32,$A$6:$C$8),MMULT(E32:G32,$A$12:$C$14)) -> 0.3361339339 | F33: 0.1054076241 | G33: 0.558458442 | I33: 29 | J33: 2.054238654
D34: A | E34: =IF(D33="A",MMULT(E33:G33,$A$6:$C$8),MMULT(E33:G33,$A$12:$C$14)) -> 0.4429304835 | F34: 0.1743396264 | G34: 0.3827298901 | I34: 30 | J34: 2.044238654
D35: B | E35: =IF(D34="A",MMULT(E34:G34,$A$6:$C$8),MMULT(E34:G34,$A$12:$C$14)) -> 0.277492807 | F35: 0.4125291838 | G35: 0.3099780092 | I35: 31 | J35: 2.173498005
D36: B | E36: =IF(D35="A",MMULT(E35:G35,$A$6:$C$8),MMULT(E35:G35,$A$12:$C$14)) -> 0.3361285587 | F36: 0.105406209 | G36: 0.5584652322 | I36: 32 | J36: 2.226530879
D37: A | E37: =IF(D36="A",MMULT(E36:G36,$A$6:$C$8),MMULT(E36:G36,$A$12:$C$14)) -> 0.4429351813 | F37: 0.1743408473 | G37: 0.3827239714 | I37: 33 | J37: 2.216530879
D38: B | E38: =IF(D37="A",MMULT(E37:G37,$A$6:$C$8),MMULT(E37:G37,$A$12:$C$14)) -> 0.2774904937 | F38: 0.4125285203 | G38: 0.309980986 | I38: 34 | J38: 2.345793237
D39: B | E39: =IF(D38="A",MMULT(E38:G38,$A$6:$C$8),MMULT(E38:G38,$A$12:$C$14)) -> 0.3361306072 | F39: 0.1054067483 | G39: 0.5584626444 | I39: 35 | J39: 2.398823448
D40: A | E40: =IF(D39="A",MMULT(E39:G39,$A$6:$C$8),MMULT(E39:G39,$A$12:$C$14)) -> 0.4429333909 | F40: 0.174340382 | G40: 0.382726227 | I40: 36 | J40: 2.388823448
D41: B | E41: =IF(D40="A",MMULT(E40:G40,$A$6:$C$8),MMULT(E40:G40,$A$12:$C$14)) -> 0.2774913753 | F41: 0.4125287732 | G41: 0.3099798515 | I41: 37 | J41: 2.51808466
D42: B | E42: =IF(D41="A",MMULT(E41:G41,$A$6:$C$8),MMULT(E41:G41,$A$12:$C$14)) -> 0.3361298265 | F42: 0.1054065428 | G42: 0.5584636307 | I42: 38 | J42: 2.571115885
D43: A | E43: =IF(D42="A",MMULT(E42:G42,$A$6:$C$8),MMULT(E42:G42,$A$12:$C$14)) -> 0.4429340733 | F43: 0.1743405593 | G43: 0.3827253674 | I43: 39 | J43: 2.561115885
D44: B | E44: =IF(D43="A",MMULT(E43:G43,$A$6:$C$8),MMULT(E43:G43,$A$12:$C$14)) -> 0.2774910393 | F44: 0.4125286768 | G44: 0.3099802839 | I44: 40 | J44: 2.690377534
D45: B | E45: =IF(D44="A",MMULT(E44:G44,$A$6:$C$8),MMULT(E44:G44,$A$12:$C$14)) -> 0.3361301241 | F45: 0.1054066211 | G45: 0.5584632548 | I45: 41 | J45: 2.743408373
D46: A | E46: =IF(D45="A",MMULT(E45:G45,$A$6:$C$8),MMULT(E45:G45,$A$12:$C$14)) -> 0.4429338132 | F46: 0.1743404918 | G46: 0.382725695 | I46: 42 | J46: 2.733408373
D47: B | E47: =IF(D46="A",MMULT(E46:G46,$A$6:$C$8),MMULT(E46:G46,$A$12:$C$14)) -> 0.2774911674 | F47: 0.4125287135 | G47: 0.3099801191 | I47: 43 | J47: 2.862669855
D48: B | E48: =IF(D47="A",MMULT(E47:G47,$A$6:$C$8),MMULT(E47:G47,$A$12:$C$14)) -> 0.3361300107 | F48: 0.1054065913 | G48: 0.5584633981 | I48: 44 | J48: 2.915700841
D49: A | E49: =IF(D48="A",MMULT(E48:G48,$A$6:$C$8),MMULT(E48:G48,$A$12:$C$14)) -> 0.4429339123 | F49: 0.1743405175 | G49: 0.3827255702 | I49: 45 | J49: 2.905700841
D50: B | E50: =IF(D49="A",MMULT(E49:G49,$A$6:$C$8),MMULT(E49:G49,$A$12:$C$14)) -> 0.2774911186 | F50: 0.4125286995 | G50: 0.3099801819 | I50: 46 | J50: 3.034962387
D51: B | E51: =IF(D50="A",MMULT(E50:G50,$A$6:$C$8),MMULT(E50:G50,$A$12:$C$14)) -> 0.3361300539 | F51: 0.1054066026 | G51: 0.5584633435 | I51: 47 | J51: 3.087993317
D52: A | E52: =IF(D51="A",MMULT(E51:G51,$A$6:$C$8),MMULT(E51:G51,$A$12:$C$14)) -> 0.4429338746 | F52: 0.1743405077 | G52: 0.3827256177 | I52: 48 | J52: 3.077993317
D53: B | E53: =IF(D52="A",MMULT(E52:G52,$A$6:$C$8),MMULT(E52:G52,$A$12:$C$14)) -> 0.2774911372 | F53: 0.4125287049 | G53: 0.309980158 | I53: 49 | J53: 3.207254839
D54: B | E54: =IF(D53="A",MMULT(E53:G53,$A$6:$C$8),MMULT(E53:G53,$A$12:$C$14)) -> 0.3361300374 | F54: 0.1054065983 | G54: 0.5584633643 | I54: 50 | J54: 3.26028579
D55: A | E55: =IF(D54="A",MMULT(E54:G54,$A$6:$C$8),MMULT(E54:G54,$A$12:$C$14)) -> 0.4429338889 | F55: 0.1743405114 | G55: 0.3827255996 | I55: 51 | J55: 3.25028579
D56: B | E56: =IF(D55="A",MMULT(E55:G55,$A$6:$C$8),MMULT(E55:G55,$A$12:$C$14)) -> 0.2774911301 | F56: 0.4125287028 | G56: 0.3099801671 | I56: 52 | J56: 3.379547321
D57: B | E57: =IF(D56="A",MMULT(E56:G56,$A$6:$C$8),MMULT(E56:G56,$A$12:$C$14)) -> 0.3361300437 | F57: 0.1054066 | G57: 0.5584633563 | I57: 53 | J57: 3.432578264
D58: A | E58: =IF(D57="A",MMULT(E57:G57,$A$6:$C$8),MMULT(E57:G57,$A$12:$C$14)) -> 0.4429338835 | F58: 0.17434051 | G58: 0.3827256065 | I58: 54 | J58: 3.422578264
D59: B | E59: =IF(D58="A",MMULT(E58:G58,$A$6:$C$8),MMULT(E58:G58,$A$12:$C$14)) -> 0.2774911328 | F59: 0.4125287036 | G59: 0.3099801636 | I59: 55 | J59: 3.551839792
D60: B | E60: =IF(D59="A",MMULT(E59:G59,$A$6:$C$8),MMULT(E59:G59,$A$12:$C$14)) -> 0.3361300413 | F60: 0.1054065993 | G60: 0.5584633594 | I60: 56 | J60: 3.604870738
D61: A | E61: =IF(D60="A",MMULT(E60:G60,$A$6:$C$8),MMULT(E60:G60,$A$12:$C$14)) -> 0.4429338856 | F61: 0.1743405106 | G61: 0.3827256039 | I61: 57 | J61: 3.594870738
D62: B | E62: =IF(D61="A",MMULT(E61:G61,$A$6:$C$8),MMULT(E61:G61,$A$12:$C$14)) -> 0.2774911318 | F62: 0.4125287033 | G62: 0.3099801649 | I62: 58 | J62: 3.724132267
D63: B | E63: =IF(D62="A",MMULT(E62:G62,$A$6:$C$8),MMULT(E62:G62,$A$12:$C$14)) -> 0.3361300422 | F63: 0.1054065996 | G63: 0.5584633582 | I63: 59 | J63: 3.777163212
D64: A | E64: =IF(D63="A",MMULT(E63:G63,$A$6:$C$8),MMULT(E63:G63,$A$12:$C$14)) -> 0.4429338848 | F64: 0.1743405104 | G64: 0.3827256049 | I64: 60 | J64: 3.767163212
D65: B | E65: =IF(D64="A",MMULT(E64:G64,$A$6:$C$8),MMULT(E64:G64,$A$12:$C$14)) -> 0.2774911321 | F65: 0.4125287034 | G65: 0.3099801644 | I65: 61 | J65: 3.89642474
D66: B | E66: =IF(D65="A",MMULT(E65:G65,$A$6:$C$8),MMULT(E65:G65,$A$12:$C$14)) -> 0.3361300419 | F66: 0.1054065995 | G66: 0.5584633586 | I66: 62 | J66: 3.949455685
D67: A | E67: =IF(D66="A",MMULT(E66:G66,$A$6:$C$8),MMULT(E66:G66,$A$12:$C$14)) -> 0.4429338851 | F67: 0.1743405104 | G67: 0.3827256045 | I67: 63 | J67: 3.939455685
D68: B | E68: =IF(D67="A",MMULT(E67:G67,$A$6:$C$8),MMULT(E67:G67,$A$12:$C$14)) -> 0.277491132 | F68: 0.4125287034 | G68: 0.3099801646 | I68: 64 | J68: 4.068717214
D69: B | E69: =IF(D68="A",MMULT(E68:G68,$A$6:$C$8),MMULT(E68:G68,$A$12:$C$14)) -> 0.336130042 | F69: 0.1054065995 | G69: 0.5584633585 | I69: 65 | J69: 4.121748159
D70: A | E70: =IF(D69="A",MMULT(E69:G69,$A$6:$C$8),MMULT(E69:G69,$A$12:$C$14)) -> 0.4429338849 | F70: 0.1743405104 | G70: 0.3827256047 | I70: 66 | J70: 4.111748159
D71: B | E71: =IF(D70="A",MMULT(E70:G70,$A$6:$C$8),MMULT(E70:G70,$A$12:$C$14)) -> 0.2774911321 | F71: 0.4125287034 | G71: 0.3099801645 | I71: 67 | J71: =IF(D71="A",E71*($B$6-$C$6)+F71*($C$7-$A$7)+G71*($A$8-$B$8),E71*($B$12-$C$12)+F71*($C$13-$A$13)+G71*($A$14-$B$14))+J70 -> 4.241009688
D72: B | E72: =IF(D71="A",MMULT(E71:G71,$A$6:$C$8),MMULT(E71:G71,$A$12:$C$14)) -> 0.336130042 | F72: 0.1054065995 | G72: 0.5584633585 | I72: 68 | J72: 4.294040633
D73: A | E73: =IF(D72="A",MMULT(E72:G72,$A$6:$C$8),MMULT(E72:G72,$A$12:$C$14)) -> 0.442933885 | F73: 0.1743405104 | G73: 0.3827256046 | I73: 69 | J73: 4.284040633
D74: B | E74: =IF(D73="A",MMULT(E73:G73,$A$6:$C$8),MMULT(E73:G73,$A$12:$C$14)) -> 0.277491132 | F74: 0.4125287034 | G74: 0.3099801646 | I74: 70 | J74: 4.413302161
D75: B | E75: =IF(D74="A",MMULT(E74:G74,$A$6:$C$8),MMULT(E74:G74,$A$12:$C$14)) -> 0.336130042 | F75: 0.1054065995 | G75: 0.5584633585 | I75: 71 | J75: 4.466333107
D76: A | E76: =IF(D75="A",MMULT(E75:G75,$A$6:$C$8),MMULT(E75:G75,$A$12:$C$14)) -> 0.442933885 | F76: 0.1743405104 | G76: 0.3827256046 | I76: 72 | J76: 4.456333107
D77: B | E77: =IF(D76="A",MMULT(E76:G76,$A$6:$C$8),MMULT(E76:G76,$A$12:$C$14)) -> 0.277491132 | F77: 0.4125287034 | G77: 0.3099801646 | I77: 73 | J77: 4.585594635
D78: B | E78: =IF(D77="A",MMULT(E77:G77,$A$6:$C$8),MMULT(E77:G77,$A$12:$C$14)) -> 0.336130042 | F78: 0.1054065995 | G78: 0.5584633585 | I78: 74 | J78: 4.638625581
D79: A | E79: =IF(D78="A",MMULT(E78:G78,$A$6:$C$8),MMULT(E78:G78,$A$12:$C$14)) -> 0.442933885 | F79: 0.1743405104 | G79: 0.3827256046 | I79: 75 | J79: 4.628625581
D80: B | E80: =IF(D79="A",MMULT(E79:G79,$A$6:$C$8),MMULT(E79:G79,$A$12:$C$14)) -> 0.277491132 | F80: 0.4125287034 | G80: 0.3099801646 | I80: 76 | J80: 4.757887109
D81: B | E81: =IF(D80="A",MMULT(E80:G80,$A$6:$C$8),MMULT(E80:G80,$A$12:$C$14)) -> 0.336130042 | F81: 0.1054065995 | G81: 0.5584633585 | I81: 77 | J81: 4.810918054
D82: A | E82: =IF(D81="A",MMULT(E81:G81,$A$6:$C$8),MMULT(E81:G81,$A$12:$C$14)) -> 0.442933885 | F82: 0.1743405104 | G82: 0.3827256046 | I82: 78 | J82: 4.800918054
D83: B | E83: =IF(D82="A",MMULT(E82:G82,$A$6:$C$8),MMULT(E82:G82,$A$12:$C$14)) -> 0.277491132 | F83: 0.4125287034 | G83: 0.3099801646 | I83: 79 | J83: 4.930179583
D84: B | E84: =IF(D83="A",MMULT(E83:G83,$A$6:$C$8),MMULT(E83:G83,$A$12:$C$14)) -> 0.336130042 | F84: 0.1054065995 | G84: 0.5584633585 | I84: 80 | J84: 4.983210528
D85: A | E85: =IF(D84="A",MMULT(E84:G84,$A$6:$C$8),MMULT(E84:G84,$A$12:$C$14)) -> 0.442933885 | F85: 0.1743405104 | G85: 0.3827256046 | I85: 81 | J85: 4.973210528
D86: B | E86: =IF(D85="A",MMULT(E85:G85,$A$6:$C$8),MMULT(E85:G85,$A$12:$C$14)) -> 0.277491132 | F86: 0.4125287034 | G86: 0.3099801646 | I86: 82 | J86: 5.102472057
D87: B | E87: =IF(D86="A",MMULT(E86:G86,$A$6:$C$8),MMULT(E86:G86,$A$12:$C$14)) -> 0.336130042 | F87: 0.1054065995 | G87: 0.5584633585 | I87: 83 | J87: 5.155503002
D88: A | E88: =IF(D87="A",MMULT(E87:G87,$A$6:$C$8),MMULT(E87:G87,$A$12:$C$14)) -> 0.442933885 | F88: 0.1743405104 | G88: 0.3827256046 | I88: 84 | J88: 5.145503002
D89: B | E89: =IF(D88="A",MMULT(E88:G88,$A$6:$C$8),MMULT(E88:G88,$A$12:$C$14)) -> 0.277491132 | F89: 0.4125287034 | G89: 0.3099801646 | I89: 85 | J89: 5.27476453
D90: B | E90: =IF(D89="A",MMULT(E89:G89,$A$6:$C$8),MMULT(E89:G89,$A$12:$C$14)) -> 0.336130042 | F90: 0.1054065995 | G90: 0.5584633585 | I90: 86 | J90: 5.327795476
D91: A | E91: =IF(D90="A",MMULT(E90:G90,$A$6:$C$8),MMULT(E90:G90,$A$12:$C$14)) -> 0.442933885 | F91: 0.1743405104 | G91: 0.3827256046 | I91: 87 | J91: 5.317795476
D92: B | E92: =IF(D91="A",MMULT(E91:G91,$A$6:$C$8),MMULT(E91:G91,$A$12:$C$14)) -> 0.277491132 | F92: 0.4125287034 | G92: 0.3099801646 | I92: 88 | J92: 5.447057004
D93: B | E93: =IF(D92="A",MMULT(E92:G92,$A$6:$C$8),MMULT(E92:G92,$A$12:$C$14)) -> 0.336130042 | F93: 0.1054065995 | G93: 0.5584633585 | I93: 89 | J93: 5.50008795
D94: A | E94: =IF(D93="A",MMULT(E93:G93,$A$6:$C$8),MMULT(E93:G93,$A$12:$C$14)) -> 0.442933885 | F94: 0.1743405104 | G94: 0.3827256046 | I94: 90 | J94: 5.49008795
D95: B | E95: =IF(D94="A",MMULT(E94:G94,$A$6:$C$8),MMULT(E94:G94,$A$12:$C$14)) -> 0.277491132 | F95: 0.4125287034 | G95: 0.3099801646 | I95: 91 | J95: 5.619349478
D96: B | E96: =IF(D95="A",MMULT(E95:G95,$A$6:$C$8),MMULT(E95:G95,$A$12:$C$14)) -> 0.336130042 | F96: 0.1054065995 | G96: 0.5584633585 | I96: 92 | J96: 5.672380423
D97: A | E97: =IF(D96="A",MMULT(E96:G96,$A$6:$C$8),MMULT(E96:G96,$A$12:$C$14)) -> 0.442933885 | F97: 0.1743405104 | G97: 0.3827256046 | I97: 93 | J97: 5.662380423
D98: B | E98: =IF(D97="A",MMULT(E97:G97,$A$6:$C$8),MMULT(E97:G97,$A$12:$C$14)) -> 0.277491132 | F98: 0.4125287034 | G98: 0.3099801646 | I98: 94 | J98: 5.791641952
D99: B | E99: =IF(D98="A",MMULT(E98:G98,$A$6:$C$8),MMULT(E98:G98,$A$12:$C$14)) -> 0.336130042 | F99: 0.1054065995 | G99: 0.5584633585 | I99: 95 | J99: 5.844672897
D100: A | E100: =IF(D99="A",MMULT(E99:G99,$A$6:$C$8),MMULT(E99:G99,$A$12:$C$14)) -> 0.442933885 | F100: 0.1743405104 | G100: 0.3827256046 | I100: 96 | J100: 5.834672897
D101: B | E101: =IF(D100="A",MMULT(E100:G100,$A$6:$C$8),MMULT(E100:G100,$A$12:$C$14)) -> 0.277491132 | F101: 0.4125287034 | G101: 0.3099801646 | I101: 97 | J101: 5.963934426
D102: B | E102: =IF(D101="A",MMULT(E101:G101,$A$6:$C$8),MMULT(E101:G101,$A$12:$C$14)) -> 0.336130042 | F102: 0.1054065995 | G102: 0.5584633585 | I102: 98 | J102: 6.016965371
D103: A | E103: =IF(D102="A",MMULT(E102:G102,$A$6:$C$8),MMULT(E102:G102,$A$12:$C$14)) -> 0.442933885 | F103: 0.1743405104 | G103: 0.3827256046 | I103: 99 | J103: 6.006965371
D104: B | E104: =IF(D103="A",MMULT(E103:G103,$A$6:$C$8),MMULT(E103:G103,$A$12:$C$14)) -> 0.277491132 | F104: 0.4125287034 | G104: 0.3099801646 | I104: 100 | J104: 6.136226899 | K104: Final M
